Workbook

Sheet Heat Exchanger-cocurrent
D2: Shell-and-Tube Heat Exchanger Design for Supercritical Fluids
E3: Version 2.1 | K3: For Educational Use Only!
E4: Report errors to R. L. Smith; Email: smith@scf.che.tohoku.ac.jp
E5: CO2 properties v7.0IIR
E6: H2O properties v7.0
AL15: Re in an annulus: Re = 2*R*(1-K)*<v>*rho/mu
AL16: where K (=ro/R) is equal to the ratio of the outer radius of the inner tube (ro) divided by the inner radius of the outer tube (R)
C17: Tube side specifications | AL17: and R is the inner diameter of the outer tube | AR17: Linear addition of heat transfer modes
C18: Tube inside diameter di [mm]: | D18: 10.922 | E18: =D18/1000 -> 0.010922 | F18: m | AK18: Shell side properties | AQ18: 1/U = 1/hCO2 + ri/kss*ln(ro/ri) + ri/ro*1/hH2O
C19: Tube outside diameter do [mm]: | D19: 12.799 | E19: =D19/1000 -> 0.012799 | F19: m | G19: Tube | H19: Shell | K19: Tube side properties | AQ19: convection | AR19: conduction | AS19: convection | AU19: Energy balance check
C20: Tube thermal conductivity [W/(m K)]: | D20: 16.3 | G20: Tcj | H20: Thj | I20: dqj | J20: Cp | K20: m | L20: k | M20: H | N20: r | O20: <v> | P20: Re | Q20: Pr | R20: f | S20: L | T20: NuPG | U20: Tbulk | V20: rbulk | W20: Hbulk | X20: Cp,bulk | Y20: Twall | Z20: rwall | AA20: Hwall | AB20: Cp,bar | AC20: NuKP | AD20: hCO2 | AE20: hH2O | AF20: Nu | AG20: Cp | AH20: m | AI20: k | AJ20: H | AK20: r | AL20: <v> | AM20: Re | AN20: Pr | AO20: U | AP20: 1/U | AQ20: 1/hCO2 | AR20: ri/kss*ln(ro/ri) | AS20: ri/ro*1/hH2O | AU20: dqc | AV20: dqh
F21: Element | G21: [C] | H21: [C] | I21: [W] | J21: [kJ/kg K] | K21: [Pa s] | L21: [W/(m K)] | M21: [kJ/kg] | N21: [kg/m3] | O21: [m/s] | P21: [-] | Q21: [-] | R21: [-] | S21: [m] | T21: [-] | U21: [C] | V21: [kg/m3] | W21: [kJ/kg] | X21: [kJ/kg K] | Y21: [C] | Z21: [kg/m3] | AA21: [kJ/kg] | AB21: [kJ/kg K] | AC21: [-] | AD21: [W/(m2 K)] | AE21: [W/(m2 K)] | AF21: [-] | AG21: [kJ/kg K] | AH21: [Pa s] | AI21: [W/(m K)] | AJ21: [kJ/kg] | AK21: [kg/m3] | AL21: [m/s] | AM21: [-] | AN21: [-] | AO21: W/(m2 K) | AP21: (m2 K)/W | AQ21: (m2 K)/W | AR21: (m2 K)/W | AS21: (m2 K)/W | AU21: [W] | AV21: [W]
C22: P [MPa]: | D22: 8 | F22: 1 | G22: =$D$24 -> 4 | H22: =$D$35 -> 100 | I22: =AO22*$D$39*(H22-G22) -> 178.7058199 | J22: =cp_tp1(G22,$D$22*1000000)/1000 -> 2.328624526 | K22: =VMU_TP1(G22,$D$22*1000000) -> 0.0001028366274 | L22: =k_tp1(G22,$D$22*1000000) -> 0.1158963828 | M22: =h_tp1(G22,$D$22*1000000)/1000 -> 205.6362437 | N22: =rho_tp1(G22,$D$22*1000000) -> 939.741469 | O22: =($D$23/60)/N22/(PI()*($E$18)^2/4) -> 0.1892980464 | P22: =N22*O22*$E$18/K22 -> 18893.3457 | Q22: =J22*1000*K22/L22 -> 2.066224043 | R22: =fKNRe(P22) -> 0.06949675762 | S22: =$D$40/1000*F22 -> 0.0173932808 | T22: =NuPGfRePrDL(R22,P22,Q22,$E$18,S22) -> 900.3929706 | U22: =G22 -> 4 | V22: =N22 -> 939.741469 | W22: =M22 -> 205.6362437 | X22: =J22 -> 2.328624526 | Y22: =H22 -> 100 | Z22: =rho_tp1(H22,$D$22*1000000) -> 141.2747511 | AA22: =h_tp1(H22,$D$22*1000000)/1000 -> 519.8939831 | AB22: =(AA22-W22)/(Y22-U22) -> 3.273518118 | AC22: =T22*(Z22/V22)^0.3*(AB22/X22)^0.4 -> 584.4065248 | AD22: =AC22*L22/($D$18/1000) -> 6201.300339 | AE22: =AF22*AI22/(2*$E$32) -> 8034.264346 | AF22: =0.023*AM22^0.8*AN22^0.4 -> 88.80257114 | AG22: =cp_rt2(AK22,H22)/1000 -> 4.215907828 | AH22: =vmu_rt2(AK22,H22) -> 0.0002822648875 | AI22: =k_rt2(AK22,H22) -> 0.6807213368 | AJ22: =h_rt2(AK22,H22)/1000 -> 419.0899798 | AK22: =rho_tp2(H22,$D$33) -> 958.301398 | AL22: =($D$34/60)/(AK22*$E$31) -> 1.202362633 | AM22: =2*($E$30/2)*(1-($E$18/$E$30))*AL22*AK22/AH22 -> 23018.80796 | AN22: =AG22*1000*AH22/AI22 -> 1.748149624 | AO22: =1/AP22 -> 3119.133119 | AP22: =SUM(AQ22:AS22) -> 0.0003206018986 | AQ22: =1/AD22 -> 0.0001612565019 | AR22: =($E$18/2/$D$20)*LN($E$19/$E$18) -> 5.313182427e-05 | AS22: =(($E$18/2)/($E$19/2))/AE22 -> 0.0001062135724 | AU22: =$D$23/60*J22*1000*(G23-G22) -> 178.7058199 | AV22: =-$D$34/60*AG22*1000*(H23-H22) -> 178.7058199
A23: Inlet/outlet specs: | C23: CO2 mass flow rate [kg/min]: | D23: 1 | F23: 2 | G23: =I22/($D$23/60*(J22*1000))+G22 -> 8.604584841 | H23: =I22/(-($D$34/60*AG22*1000))+H22 -> 99.57592246 | I23: =AO23*$D$39*(H23-G23) -> 156.78902 | J23: 2.43911595 | K23: 9.532190057e-05 | L23: 0.1105251485 | M23: 216.6006018 | N23: 912.0670333 | O23: =($D$23/60)/N23/(PI()*($E$18)^2/4) -> 0.1950418311 | P23: =N23*O23*$D$18/1000/K23 -> 20382.80751 | Q23: =J23*1000*K23/L23 -> 2.103604213 | R23: =fKNRe(P23) -> 0.06890133241 | S23: =$D$40/1000*F23 -> 0.0347865616 | T23: =NuPGfRePrDL(R23,P23,Q23,$E$18,S23) -> 817.2536344 | U23: =G23 -> 8.604584841 | V23: =N23 -> 912.0670333 | W23: =M23 -> 216.6006018 | X23: =J23 -> 2.43911595 | Y23: =H23 -> 99.57592246 | Z23: 141.6092753 | AA23: 519.3269609 | AB23: =(AA23-W23)/(Y23-U23) -> 3.327711421 | AC23: =T23*(Z23/V23)^0.3*(AB23/X23)^0.4 -> 529.2265549 | AD23: =AC23*L23/($D$18/1000) -> 5355.506644 | AE23: =AF23*AI23/(2*$E$32) -> 8018.638085 | AF23: =0.023*AM23^0.8*AN23^0.4 -> 88.64575077 | AG23: 4.215418996 | AH23: 0.00028353288 | AI23: 0.6805992665 | AJ23: 417.3022117 | AK23: 958.6061027 | AL23: =($D$34/60)/(AK23*$E$31) -> 1.201980447 | AM23: =2*($E$30/2)*(1-($E$18/$E$30))*AL23*AK23/AH23 -> 22915.86514 | AN23: =AG23*1000*AH23/AI23 -> 1.756113983 | AO23: =1/AP23 -> 2887.869153 | AP23: =SUM(AQ23:AS23) -> 0.0003462760766 | AQ23: =1/AD23 -> 0.000186723697 | AR23: =($E$18/2/$D$20)*LN($E$19/$E$18) -> 5.313182427e-05 | AS23: =(($E$18/2)/($E$19/2))/AE23 -> 0.0001064205553 | AU23: =$D$23/60*J23*1000*(G24-G23) -> 156.78902 | AV23: =-$D$34/60*AG23*1000*(H24-H23) -> 156.78902
B24: 1 | C24: Tc1 [C]: | D24: 4 | E24: calculated: | F24: 3 | G24: =I23/($D$23/60*(J23*1000))+G23 -> 12.46144995 | H24: =I23/(-($D$34/60*AG23*1000))+H23 -> 99.2038114 | I24: =AO24*$D$39*(H24-G24) -> 144.6712537 | J24: 2.563046956 | K24: 8.907705174e-05 | L24: 0.1060453853 | M24: 226.2352979 | N24: 886.6220021 | O24: 0.2006393071 | P24: 21811.7676 | Q24: 2.152933536 | R24: 0.06837797456 | S24: 0.05217984239 | T24: 807.1202592 | U24: 12.46144995 | V24: 886.6220021 | W24: 226.2352979 | X24: 2.563046956 | Y24: 99.2038114 | Z24: 141.9047818 | AA24: 518.8285445 | AB24: 3.373129827 | AC24: 519.9078848 | AD24: 5047.961175 | AE24: 8004.901522 | AF24: 88.50805576 | AG24: 4.214993444 | AH24: 0.0002846537346 | AI24: 0.6804903637 | AJ24: 415.733687 | AK24: 958.8727858 | AL24: 1.201646151 | AM24: 22825.63147 | AN24: =AG24*1000*AH24/AI24 -> 1.763160346 | AO24: =1/AP24 -> 2794.585817 | AP24: 0.0003578347796 | AQ24: 0.0001980997804 | AR24: 5.313182427e-05 | AS24: =(($E$18/2)/($E$19/2))/AE24 -> 0.000106603175 | AU24: =$D$23/60*J24*1000*(G25-G24) -> 144.6712537 | AV24: =-$D$34/60*AG24*1000*(H25-H24) -> 144.6712537
B25: 50 | C25: Tc2 [C]: | D25: 60 | E25: =G71 -> 60.00029759 | F25: 4 | G25: 15.84815155 | H25: 98.86042505 | I25: =AO25*$D$39*(H25-G25) -> 135.7735625 | J25: 2.709975777 | K25: 8.357037965e-05 | L25: 0.1018465497 | M25: 235.1516334 | N25: 862.0005657 | O25: 0.2063701943 | P25: 23249.00232 | Q25: 2.223675767 | R25: 0.06789210817 | S25: 0.06957312319 | T25: 819.2794891 | U25: 15.84815155 | V25: 862.0005657 | W25: 235.1516334 | X25: 2.709975777 | Y25: 98.86042505 | Z25: 142.1791342 | AA25: 518.3678665 | AB25: 3.411739266 | AC25: 523.1602596 | AD25: 4878.416718 | AE25: 7992.204447 | AF25: 88.38091374 | AG25: 4.214603528 | AH25: 0.0002856949658 | AI25: 0.6803883748 | AJ25: 414.2863828 | AK25: 959.1183154 | AL25: 1.201338535 | AM25: 22742.44218 | AN25: 1.769711323 | AO25: 2740.560236 | AP25: 0.0003648888964 | AQ25: 0.0002049845386 | AR25: 5.313182427e-05 | AS25: 0.0001067725336 | AU25: 135.7735625 | AV25: 135.7735625
C26: Qc [kW]: | D26: =(D23/60)*(h_tp1(D25,D22*1000000)-h_tp1(D24,D22*1000000))/1000 -> 4.208120977 | F26: 5 | G26: 18.85423515 | H26: 98.53812812 | I26: =AO26*$D$39*(H26-G26) -> 128.4347952 | J26: 2.888744456 | K26: 7.860308563e-05 | L26: 0.09783337232 | M26: 243.5523283 | N26: 837.7327182 | O26: 0.2123484261 | P26: 24718.21475 | Q26: 2.32092815 | R26: 0.06743181614 | S26: 0.08696640399 | T26: 842.3608549 | U26: 18.85423515 | V26: 837.7327182 | W26: 243.5523283 | X26: 2.888744456 | Y26: 98.53812812 | Z26: 142.4381 | AA26: 517.9348312 | AB26: 3.443387273 | AC26: 531.0862812 | AD26: 4757.183838 | AE26: 7980.268903 | AF26: 88.26151338 | AG26: 4.214239984 | AH26: 0.0002866783262 | AI26: 0.6802913402 | AJ26: 412.9280877 | AK26: 959.3482697 | AL26: 1.201050576 | AM26: 22664.43134 | AN26: 1.775902755 | AO26: 2700.714031 | AP26: 0.0003702724496 | AQ26: 0.0002102083993 | AR26: 5.313182427e-05 | AS26: 0.000106932226 | AU26: 128.4347952 | AV26: 128.4347952
C27: Qsum [kW]: | D27: =SUM(I22:I131)/1000 -> 4.230150952 | F27: 6 | G27: 21.52186042 | H27: 98.23322552 | I27: 122.0233836 | J27: 3.10900768 | K27: 7.406719836e-05 | L27: 0.09395912608 | M27: 251.5358716 | N27: 813.5873314 | O27: 0.2186504353 | P27: 26231.96224 | Q27: 2.45080492 | R27: 0.06699110762 | S27: 0.1043596848 | T27: 872.6383364 | U27: 21.52186042 | V27: 813.5873314 | W27: 251.5358716 | X27: 3.10900768 | Y27: 98.23322552 | Z27: 142.6844069 | AA27: 517.524581 | AB27: 3.467396377 | AC27: 540.7277623 | AD27: 4651.74034 | AE27: 7968.961206 | AF27: 88.14849716 | AG27: 4.213898213 | AH27: 0.000287614076 | AI27: 0.6801983703 | AJ27: 411.6432071 | AK27: 959.5653708 | AL27: 1.200778839 | AM27: 22590.69282 | AN27: 1.781798507 | AO27: 2665.322706 | AP27: 0.0003751890897 | AQ27: 0.0002149733061 | AR27: 5.313182427e-05 | AS27: 0.0001070839593 | AU27: 122.0233836 | AV27: 122.0233836
F28: 7 | G28: 23.87676069 | H28: 97.94352005 | I28: 116.2527822 | J28: 3.38256674 | K28: 6.98931311e-05 | L28: 0.09019700762 | M28: 259.1606034 | N28: 789.4287594 | O28: 0.225341707 | P28: 27798.55359 | Q28: 2.621131087 | R28: 0.06656639164 | S28: 0.1217529656 | T28: 908.9015369 | U28: 23.87676069 | V28: 789.4287594 | W28: 259.1606034 | X28: 3.38256674 | Y28: 97.94352005 | Z28: 142.9196355 | AA28: 517.1342459 | AB28: 3.482988114 | AC28: 550.7224387 | AD28: 4548.023805 | AE28: 7958.202397 | AF28: 88.04105976 | AG28: 4.213575407 | AH28: 0.0002885081429 | AI28: 0.6801089741 | AJ28: 410.4224645 | AK28: 959.771252 | AL28: 1.200521259 | AM28: 22520.68581 | AN28: 1.787435341 | AO28: 2629.943745 | AP28: 0.0003802362701 | AQ28: 0.0002198757181 | AR28: 5.313182427e-05 | AS28: 0.0001072287277 | AU28: 116.2527822 | AV28: 116.2527822
C29: Shell side specifications | F29: 8 | G29: 25.93885361 | H29: 97.66749387 | I29: 110.9624384 | J29: 3.727500071 | K29: 6.602986617e-05 | L29: 0.08652899183 | M29: 266.4688444 | N29: 765.1597186 | O29: 0.2324890083 | P29: 29424.98696 | Q29: 2.84443775 | R29: 0.06615511497 | S29: 0.1391462464 | T29: 951.1645329 | U29: 25.93885361 | V29: 765.1597186 | W29: 266.4688444 | X29: 3.727500071 | Y29: 97.66749387 | Z29: 143.1448534 | AA29: 516.7618539 | AB29: 3.489443108 | AC29: 560.270975 | AD29: 4438.718424 | AE29: 7947.938237 | AF29: 87.93864601 | AG29: 4.213269588 | AH29: 0.0002893645205 | AI29: 0.6800228342 | AJ29: 409.2594497 | AK29: 959.9670498 | AL29: 1.200276397 | AM29: 22454.03559 | AN29: 1.792837936 | AO29: 2592.08859 | AP29: 0.0003857892835 | AQ29: 0.0002252902538 | AR29: 5.313182427e-05 | AS29: 0.0001073672055 | AU29: 110.9624384 | AV29: 110.9624384
C30: Shell tube diamter Di [mm]: | D30: 16.561 | E30: =D30/1000 -> 0.016561 | F30: 9 | G30: 27.72496928 | H30: 97.40400976 | I30: 106.0327988 | J30: 4.17549252 | K30: 6.243550107e-05 | L30: 0.08293986156 | M30: 273.4980448 | N30: 740.688498 | O30: 0.2401700913 | P30: 31118.96145 | Q30: 3.143228874 | R30: 0.06575505615 | S30: 0.1565395272 | T30: 1000.435499 | U30: 27.72496928 | V30: 740.688498 | W30: 273.4980448 | X30: 4.17549252 | Y30: 97.40400976 | Z30: 143.3608448 | AA30: 516.4059346 | AB30: 3.486096941 | AC30: 568.6961378 | AD30: 4318.584411 | AE30: 7938.128281 | AF30: 87.84084065 | AG30: 4.212979247 | AH30: 0.0002901861356 | AI30: 0.6799397267 | AJ30: 408.1493584 | AK30: 960.1536209 | AL30: 1.200043167 | AM30: 22390.46061 | AN30: 1.798024324 | AO30: 2549.790569 | AP30: 0.0003921890732 | AQ30: 0.0002315573588 | AR30: 5.313182427e-05 | AS30: 0.0001074998901 | AU30: 106.0327988 | AV30: 106.0327988
C31: Annular cross-sectional area S [m]: | E31: =PI()/4*($E$30^2-$E$19^2) -> 8.674904927e-05 | F31: 10 | G31: 29.2486142 | H31: 97.1522139 | I31: 101.3716276 | J31: 4.779903543 | K31: 5.907430876e-05 | L31: 0.0794157718 | M31: 280.2832682 | N31: 715.9212146 | O31: 0.2484787719 | P31: 32889.55879 | Q31: 3.555584632 | R31: 0.0653641393 | S31: 0.173932808 | T31: 1058.864654 | U31: 29.2486142 | V31: 715.9212146 | W31: 280.2832682 | X31: 4.779903543 | Y31: 97.1522139 | Z31: 143.5681816 | AA31: 516.0653916 | AB31: 3.472306688 | AC31: 575.410681 | AD31: 4183.911676 | AE31: 7928.742368 | AF31: 87.74733267 | AG31: 4.212703225 | AH31: 0.0002909751164 | AI31: 0.6798594984 | AJ31: 407.0885824 | AK31: 960.3316142 | AL31: 1.199820744 | AM31: 22329.74875 | AN31: 1.803007554 | AO31: 2501.439875 | AP31: 0.0003997697526 | AQ31: 0.0002390107816 | AR31: 5.313182427e-05 | AS31: 0.0001076271467 | AU31: 101.3716276 | AV31: 101.3716276
C32: Hydraulic radius [m]: | E32: =4*E31/(PI()*(E30+E19)) -> 0.003762 | F32: 11 | G32: 30.52108708 | H32: 96.91147114 | I32: 96.93595381 | J32: 5.621394453 | K32: 5.591899792e-05 | L32: 0.07594815621 | M32: 286.853359 | N32: 690.7896328 | O32: 0.2575186653 | P32: 34745.40001 | Q32: 4.138912127 | R32: 0.06498081676 | S32: 0.1913260888 | T32: 1129.814099 | U32: 30.52108708 | V32: 690.7896328 | W32: 286.853359 | X32: 5.621394453 | Y32: 96.91147114 | Z32: 143.7672709 | AA32: 515.7394173 | AB32: 3.447578464 | AC32: 580.1887381 | AD32: 4034.450184 | AE32: 7919.758285 | AF32: 87.65789153 | AG32: 4.212440632 | AH32: 0.0002917329699 | AI32: 0.6797820516 | AJ32: 406.0744362 | AK32: 960.5015184 | AL32: 1.199608506 | AM32: 22271.74132 | AN32: 1.807796798 | AO32: 2446.50526 | AP32: 0.0004087463111 | AQ32: 0.0002478652491 | AR32: 5.313182427e-05 | AS32: 0.0001077492377 | AU32: 96.93595381 | AV32: 96.93595381
C33: P [MPa]: | D33: 0.2 | F33: 12 | G33: 31.55573378 | H33: 96.6812481 | I33: 92.738771 | J33: 6.813337925 | K33: 5.295396148e-05 | L33: 0.07253965696 | M33: 293.2272111 | N33: 665.2982872 | O33: 0.2673856639 | P33: 36690.88953 | Q33: 4.973737803 | R33: 0.06460466504 | S33: 0.2087193696 | T33: 1217.6062 | U33: 31.55573378 | V33: 665.2982872 | W33: 293.2272111 | X33: 6.813337925 | Y33: 96.6812481 | Z33: 143.9584476 | AA33: 515.4273367 | AB33: 3.411875176 | AC33: 583.3461788 | AD33: 3874.357416 | AE33: 7911.157455 | AF33: 87.57232393 | AG33: 4.212190708 | AH33: 0.0002924609339 | AI33: 0.6797073096 | AJ33: 405.1046641 | AK33: 960.6637458 | AL33: 1.199405928 | AM33: 22216.30477 | AN33: 1.812399559 | AO33: 2386.03394 | AP33: 0.0004191055221 | AQ33: 0.0002581073176 | AR33: 5.313182427e-05 | AS33: 0.0001078663802 | AU33: 92.738771 | AV33: 92.738771
A34: Inlet/outlet specs: | C34: H2O water flow rate [kg/min]: | D34: =(D37*1000/(h_tp2(D35,D33*1000000)-h_tp2(D36,D33*1000000)))*60 -> 5.99726952 | F34: 13 | G34: 32.37241517 | H34: 96.46098031 | I34: 88.82045208 | J34: 8.514110532 | K34: 5.017450959e-05 | L34: 0.06920592694 | M34: 299.4158043 | N34: 639.5499485 | O34: 0.2781506349 | P34: 38723.4069 | Q34: 6.172756286 | R34: 0.06423656872 | S34: 0.2261126504 | T34: 1327.140093 | U34: 32.37241517 | V34: 639.5499485 | W34: 299.4158043 | X34: 8.514110532 | Y34: 96.46098031 | Z34: 144.1420832 | AA34: 515.128428 | AB34: 3.365851977 | AC34: 585.5634472 | AD34: 3710.351689 | AE34: 7902.919998 | AF34: 87.49042451 | AG34: 4.211952683 | AH34: 0.0002931603893 | AI34: 0.679635176 | AJ34: 404.1768804 | AK34: 960.8187271 | AL34: 1.199212463 | AM34: 22163.29858 | AN34: 1.816824278 | AO34: 2322.196027 | AP34: 0.0004306268671 | AQ34: 0.0002695162302 | AR34: 5.313182427e-05 | AS34: 0.0001079788126 | AU34: 88.82045208 | AV34: 88.82045208
B35: 1 | C35: Th1 [C]: | D35: 100 | F35: 14 | G35: 32.99834399 | H35: 96.25000717 | I35: 85.23388053 | J35: 10.92714733 | K35: 4.758451725e-05 | L35: 0.06597480966 | M35: 305.4224207 | N35: 613.7571436 | O35: 0.2898397617 | P35: 40831.09514 | Q35: 7.881235779 | R35: 0.06387868602 | S35: 0.2435059312 | T35: 1462.892652 | U35: 32.99834399 | V35: 613.7571436 | W35: 305.4224207 | X35: 10.92714733 | Y35: 96.25000717 | Z35: 144.31864 | AA35: 514.8418339 | AB35: 3.310891803 | AC35: 587.7403333 | AD35: 3550.270703 | AE35: 7895.022295 | AF35: 87.41195165 | AG35: 4.2117257 | AH35: 0.0002938330681 | AI35: 0.6795655128 | AJ35: 403.2882955 | AK35: 960.9669565 | AL35: 1.199027484 | AM35: 22112.55963 | AN35: 1.821081649 | AO35: 2257.910684 | AP35: 0.0004428873148 | AQ35: 0.0002816686624 | AR35: 5.313182427e-05 | AS35: 0.0001080868281 | AU35: 85.23388053 | AV35: 85.23388053
B36: 50 | C36: Th2 [C]: | D36: 90 | F36: 15 | G36: 33.46635569 | H36: 96.04754221 | I36: 82.04525182 | J36: 14.24384493 | K36: 4.519556286e-05 | L36: 0.06288640314 | M36: 311.2356331 | N36: 588.2632896 | O36: 0.3024006892 | P36: 42989.35179 | Q36: 10.23684861 | R36: 0.06353457404 | S36: 0.260899212 | T36: 1626.350546 | U36: 33.46635569 | V36: 588.2632896 | W36: 311.2356331 | X36: 14.24384493 | Y36: 96.04754221 | Z36: 144.4886975 | AA36: 514.5665211 | AB36: 3.249073712 | AC36: 590.9431862 | AD36: 3402.517071 | AE36: 7887.435872 | AF36: 87.33661638 | AG36: 4.211508785 | AH36: 0.000294481152 | AI36: 0.6794981299 | AJ36: 402.4355906 | AK36: 961.1090127 | AL36: 1.198850262 | AM36: 22063.89508 | AN36: 1.825185242 | AO36: 2196.727092 | AP36: 0.0004552226827 | AQ36: 0.0002939000685 | AR36: 5.313182427e-05 | AS36: 0.00010819079 | AU36: 82.04525182 | AV36: 82.04525182
C37: Qh [kW]: | D37: =D26 -> 4.208120977 | F37: 16 | G37: 33.81195866 | H37: 95.8526415 | I37: 79.26558373 | J37: 18.63547934 | K37: 4.30162058e-05 | L37: 0.05997893322 | M37: 316.8446244 | N37: 563.443778 | O37: 0.3157213393 | P37: 45167.34832 | Q37: 13.36515292 | R37: 0.06320777907 | S37: 0.2782924928 | T37: 1816.318266 | U37: 33.81195866 | V37: 563.443778 | W37: 316.8446244 | X37: 18.63547934 | Y37: 95.8526415 | Z37: 144.6529798 | AA37: 514.3012367 | AB37: 3.182695665 | AC37: 595.6851964 | AD37: 3271.247264 | AE37: 7880.126194 | AF37: 87.26407055 | AG37: 4.21130082 | AH37: 0.0002951073788 | AI37: 0.6794327736 | AJ37: 401.6147848 | AK37: 961.2455806 | AL37: 1.198679937 | AM37: 22017.07483 | AN37: 1.829152191 | AO37: 2140.792329 | AP37: 0.0004671167709 | AQ37: 0.0003056937979 | AR37: 5.313182427e-05 | AS37: 0.0001082911487 | AU37: 79.26558373 | AV37: 79.26558373
F38: 17 | G38: 34.06716728 | H38: 95.66433466 | I38: 76.86384969 | J38: 24.22787509 | K38: 4.104325626e-05 | L38: 0.05727450147 | M38: 322.2561525 | N38: 539.5819964 | O38: 0.3296833946 | P38: 47338.54298 | Q38: 17.36184272 | R38: 0.06290034603 | S38: 0.2956857736 | T38: 2029.658634 | U38: 34.06716728 | V38: 539.5819964 | W38: 322.2561525 | X38: 24.22787509 | Y38: 95.66433466 | Z38: 144.8122463 | AA38: 514.0446858 | AB38: 3.113593393 | AC38: 602.0408787 | AD38: 3157.076652 | AE38: 7873.057579 | AF38: 87.1939556 | AG38: 4.211100676 | AH38: 0.000295714625 | AI38: 0.6793691698 | AJ38: 400.821787 | AK38: 961.3773596 | AL38: 1.19851563 | AM38: 21971.86304 | AN38: 1.833000543 | AO38: 2090.873883 | AP38: 0.000478268923 | AQ38: 0.0003167487237 | AR38: 5.313182427e-05 | AS38: 0.0001083883751 | AU38: 76.86384969 | AV38: 76.86384969
C39: dAj [m2]: | D39: =PI()*(D18/1000)*(D40/1000) -> 0.0005968065119 | F39: 18 | G39: 34.25751955 | H39: 95.48172482 | I39: 75.01504996 | J39: 29.91329182 | K39: 3.929346493e-05 | L39: 0.05482097168 | M39: 327.400994 | N39: 517.2327203 | O39: 0.3439287911 | P39: 49446.59257 | Q39: 21.440643 | R39: 0.0626176537 | S39: 0.3130790544 | T39: 2236.172069 | U39: 34.25751955 | V39: 517.2327203 | W39: 327.400994 | X39: 29.91329182 | Y39: 95.48172482 | Z39: 144.9672067 | AA39: 513.7956684 | AB39: 3.044460498 | AC39: 612.1231534 | AD39: 3072.439669 | AE39: 7866.196955 | AF39: 87.12593979 | AG39: 4.210907322 | AH39: 0.0002963055804 | AI39: 0.6793070587 | AJ39: 400.0528162 | AK39: 961.5049933 | AL39: 1.198356535 | AM39: 21928.0421 | AN39: 1.8367472 | AO39: 2053.012971 | AP39: 0.000487088983 | AQ39: 0.000325474251 | AR39: 5.313182427e-05 | AS39: 0.0001084829076 | AU39: 75.01504996 | AV39: 75.01504996
C40: dLj [mm]: | D40: 17.3932808 | F40: 19 | G40: 34.40798453 | H40: 95.30349909 | I40: 73.82741014 | J40: 33.62728118 | K40: 3.777380347e-05 | L40: 0.05265087621 | M40: 332.2044071 | N40: 496.8621494 | O40: 0.3580293335 | P40: 51435.85692 | Q40: 24.12553033 | R40: 0.06236385918 | S40: 0.3304723352 | T40: 2393.894942 | U40: 34.40798453 | V40: 496.8621494 | W40: 332.2044071 | X40: 33.62728118 | Y40: 95.30349909 | Z40: 145.118936 | AA40: 513.5524114 | AB40: 2.978019081 | AC40: 627.5463773 | AD40: 3025.166327 | AE40: 7859.495472 | AF40: 87.05953586 | AG40: 4.210719306 | AH40: 0.0002968843328 | AI40: 0.679246028 | AJ40: 399.3023409 | AK40: 961.6294123 | AL40: 1.198201487 | AM40: 21885.29512 | AN40: 1.840417964 | AO40: 2031.415566 | AP40: 0.0004922675679 | AQ40: 0.0003305603368 | AR40: 5.313182427e-05 | AS40: 0.0001085754068 | AU40: 73.82741014 | AV40: 73.82741014
F41: 20 | G41: 34.53971224 | H41: 95.1280872 | I41: 73.10266996 | J41: 35.02031251 | K41: 3.643741455e-05 | L41: 0.05071474654 | M41: 336.7460296 | N41: 478.172137 | O41: 0.3720234 | P41: 53322.33296 | Q41: 25.16131365 | R41: 0.06213383303 | S41: 0.347865616 | T41: 2500.769412 | U41: 34.53971224 | V41: 478.172137 | W41: 336.7460296 | X41: 35.02031251 | Y41: 95.1280872 | Z41: 145.2687445 | AA41: 513.3127834 | AB41: 2.914201841 | AC41: 647.0381206 | AD41: 3004.429069 | AE41: 7852.894414 | AF41: 86.99415997 | AG41: 4.21053493 | AH41: 0.0002974558711 | AI41: 0.6791855636 | AJ41: 398.5637469 | AK41: 961.7517216 | AL41: 1.198049108 | AM41: 21843.24424 | AN41: 1.8440444 | AO41: 2021.670535 | AP41: 0.0004946404384 | AQ41: 0.0003328419401 | AR41: 5.313182427e-05 | AS41: 0.0001086666741 | AU41: 73.10266996 | AV41: 73.10266996
C42: Total Area [m2]: | D42: =(MAX(F22:F2000)-1)*D39 -> 0.02924351908 | F42: 21 | G42: 34.66495842 | H42: 94.95438966 | I42: 72.56625943 | J42: 35.26268237 | K42: 3.523159369e-05 | L42: 0.04894752582 | M42: 341.1465818 | N42: 460.6588482 | O42: 0.3861669539 | P42: 55147.31941 | Q42: 25.38147694 | R42: 0.06192041086 | S42: 0.3652588968 | T42: 2582.278883 | U42: 34.66495842 | V42: 460.6588482 | W42: 341.1465818 | X42: 35.26268237 | Y42: 94.95438966 | Z42: 145.4175557 | AA42: 513.0752894 | AB42: 2.851722169 | AC42: 668.176377 | AD42: 2994.468089 | AE42: 7846.352609 | AF42: 86.92940308 | AG42: 4.210353009 | AH42: 0.0002980237121 | AI42: 0.679125301 | AJ42: 397.8324031 | AK42: 961.8726934 | AL42: 1.197898433 | AM42: 21801.62509 | AN42: 1.847648779 | AO42: 2016.786832 | AP42: 0.0004958382236 | AQ42: 0.0003339491257 | AR42: 5.313182427e-05 | AS42: 0.0001087572736 | AU42: 72.56625943 | AV42: 72.56625943
C43: Total Length [m]: | D43: =(MAX(F22:F150))*D40/1000 -> 0.8696640399 | F43: 22 | G43: 34.78843103 | H43: 94.78195923 | I43: 72.19201657 | J43: 34.43455812 | K43: 3.412631915e-05 | L43: 0.04731251192 | M43: 345.4694151 | N43: 444.0471582 | O43: 0.4006133604 | P43: 56933.41677 | Q43: 24.83750434 | R43: 0.06171958159 | S43: 0.3826521776 | T43: 2639.253862 | U43: 34.78843103 | V43: 444.0471582 | W43: 345.4694151 | X43: 34.43455812 | Y43: 94.78195923 | Z43: 145.5657436 | AA43: 512.8393219 | AB43: 2.789799363 | AC43: 691.1965708 | AD43: 2994.16279 | AE43: 7839.853343 | AF43: 86.8650989 | AG43: 4.210173057 | AH43: 0.000298589278 | AI43: 0.679065094 | AJ43: 397.1064257 | AK43: 961.9926427 | AL43: 1.197749069 | AM43: 21760.33006 | AN43: 1.851240101 | AO43: 2016.281738 | AP43: 0.0004959624347 | AQ43: 0.0003339831766 | AR43: 5.313182427e-05 | AS43: 0.0001088474338 | AU43: 72.19201657 | AV43: 72.19201657
F44: 23 | G44: 34.91422097 | H44: 94.61041074 | I44: 72.11019384 | J44: 31.84812775 | K44: 3.312707075e-05 | L44: 0.04582337512 | M44: 349.6522184 | N44: 428.5532194 | O44: 0.4150971598 | P44: 58650.76226 | Q44: 23.02395182 | R44: 0.06153347822 | S44: 0.4000454584 | T44: 2651.080446 | U44: 34.91422097 | V44: 428.5532194 | W44: 349.6522184 | X44: 31.84812775 | Y44: 94.61041074 | Z44: 145.713633 | AA44: 512.6043565 | AB44: 2.729690767 | AC44: 717.9320663 | AD44: 3012.092143 | AE44: 7833.38219 | AF44: 86.80110412 | AG44: 4.209994659 | AH44: 0.0002991538054 | AI44: 0.6790048145 | AJ44: 396.3841922 | AK44: 962.11184 | AL44: 1.197600678 | AM44: 21719.26656 | AN44: 1.854826205 | AO44: 2024.027913 | AP44: 0.0004940643326 | AQ44: 0.0003319951557 | AR44: 5.313182427e-05 | AS44: 0.0001089373526 | AU44: 72.11019384 | AV44: 72.11019384
F45: 24 | G45: 35.05007233 | H45: 94.43904942 | I45: 72.25796681 | J45: 28.25139753 | K45: 3.221397214e-05 | L45: 0.04445476987 | M45: 353.7366912 | N45: 413.9850694 | O45: 0.4297044443 | P45: 60313.2064 | Q45: 20.47226283 | R45: 0.06135943955 | S45: 0.4174387392 | T45: 2628.398294 | U45: 35.05007233 | V45: 413.9850694 | W45: 353.7366912 | X45: 28.25139753 | Y45: 94.43904942 | Z45: 145.8618214 | AA45: 512.3694422 | AB45: 2.671080709 | AC45: 748.2334036 | AD45: 3045.462714 | AE45: 7826.912985 | AF45: 86.73715968 | AG45: 4.209817085 | AH45: 0.0002997195716 | AI45: 0.6789442208 | AJ45: 395.6627771 | AK45: 962.2307692 | AL45: 1.197452658 | AM45: 21678.26814 | AN45: 1.858421553 | AO45: 2038.667216 | AP45: 0.0004905165454 | AQ45: 0.0003283573282 | AR45: 5.313182427e-05 | AS45: 0.000109027393 | AU45: 72.25796681 | AV45: 72.25796681
D46: Delta T [C]: | E46: =D25-E25 -> -0.0002975865749 | F46: 25 | G46: 35.20353299 | H46: 94.26732969 | I46: 72.55042042 | J46: 24.44692881 | K46: 3.136866783e-05 | L46: 0.04318210579 | M46: 357.7722857 | N46: 400.1350287 | O46: 0.4445779835 | P46: 61938.49102 | Q46: 17.75892062 | R46: 0.06119475632 | S46: 0.43483202 | T46: 2586.540788 | U46: 35.20353299 | V46: 400.1350287 | W46: 357.7722857 | X46: 24.44692881 | Y46: 94.26732969 | Z46: 146.0107839 | AA46: 512.1338298 | AB46: 2.61347141 | AC46: 781.5742054 | AD46: 3090.095223 | AE46: 7820.42512 | AF46: 86.67306194 | AG46: 4.209639769 | AH46: 0.0003002883889 | AI46: 0.6788831187 | AJ46: 394.9398837 | AK46: 962.3498087 | AL46: 1.197304537 | AM46: 21637.20437 | AN46: 1.862037675 | AO46: 2058.187895 | AP46: 0.0004858642898 | AQ46: 0.0003236146228 | AR46: 5.313182427e-05 | AS46: 0.0001091178427 | AU46: 72.55042042 | AV46: 72.55042042
F47: 26 | G47: 35.3815932 | H47: 94.09490769 | I47: 72.91939492 | J47: 20.90785299 | K47: 3.057819905e-05 | L47: 0.04198788311 | M47: 361.7961504 | N47: 386.8525331 | O47: 0.4598424697 | P47: 63539.64626 | Q47: 15.22640445 | R47: 0.06103749887 | S47: 0.4522253008 | T47: 2537.243363 | U47: 35.3815932 | V47: 386.8525331 | W47: 361.7961504 | X47: 20.90785299 | Y47: 94.09490769 | Z47: 146.1608259 | AA47: 511.8970441 | AB47: 2.556505199 | AC47: 817.4904448 | AD47: 3142.711338 | AE47: 7813.90555 | AF47: 86.6086823 | AG47: 4.209462361 | AH47: 0.000300861422 | AI47: 0.6788213814 | AJ47: 394.2140645 | AK47: 962.4691954 | AL47: 1.197156021 | AM47: 21595.99326 | AN47: 1.865681999 | AO47: 2081.003953 | AP47: 0.00048053729 | AQ47: 0.0003181965801 | AR47: 5.313182427e-05 | AS47: 0.0001092088857 | AU47: 72.91939492 | AV47: 72.91939492
F48: 27 | G48: 35.59085255 | H48: 93.92160148 | I48: 73.32255219 | J48: 17.80627453 | K48: 2.983456651e-05 | L48: 0.04086144464 | M48: 365.829838 | N48: 374.0495673 | O48: 0.4755819543 | P48: 65123.38466 | Q48: 13.0010695 | R48: 0.0608865478 | S48: 0.4696185816 | T48: 2487.104344 | U48: 35.59085255 | V48: 374.0495673 | W48: 365.829838 | X48: 17.80627453 | Y48: 93.92160148 | Z48: 146.3121149 | AA48: 511.6588312 | AB48: 2.50003636 | AC48: 855.7534318 | AD48: 3201.549302 | AE48: 7807.347321 | AF48: 86.54395251 | AG48: 4.209284681 | AH48: 0.0003014393103 | AI48: 0.6787589374 | AJ48: 393.484554 | AK48: 962.5890534 | AL48: 1.197006955 | AM48: 21554.59165 | AN48: 1.869358621 | AO48: 2106.233265 | AP48: 0.0004747812204 | AQ48: 0.0003123487742 | AR48: 5.313182427e-05 | AS48: 0.0001093006219 | AU48: 73.32255219 | AV48: 73.32255219
F49: 28 | G49: 35.83792013 | H49: 93.74732975 | I49: 73.73612899 | J49: 15.15769889 | K49: 2.913299607e-05 | L49: 0.0397965999 | M49: 369.8838999 | N49: 361.680463 | O49: 0.4918463738 | P49: 66691.66282 | Q49: 11.09615352 | R49: 0.06074133536 | S49: 0.4870118623 | T49: 2439.269821 | U49: 35.83792013 | V49: 361.680463 | W49: 369.8838999 | X49: 15.15769889 | Y49: 93.74732975 | Z49: 146.4647325 | AA49: 511.4190747 | AB49: 2.444079049 | AC49: 896.34466 | AD49: 3266.019942 | AE49: 7800.747266 | AF49: 86.47884182 | AG49: 4.209106654 | AH49: 0.0003020223644 | AI49: 0.6786957503 | AJ49: 392.7510101 | AK49: 962.7094364 | AL49: 1.196857274 | AM49: 21512.98052 | AN49: 1.87306955 | AO49: 2133.524545 | AP49: 0.0004687079894 | AQ49: 0.0003061830661 | AR49: 5.313182427e-05 | AS49: 0.000109393099 | AU49: 73.73612899 | AV49: 73.73612899
F50: 29 | G50: 36.12979607 | H50: 93.57206762 | I50: 74.14379139 | J50: 12.92301799 | K50: 2.847045905e-05 | L50: 0.03878951646 | M50: 373.9634625 | N50: 349.7215513 | O50: 0.5086653183 | P50: 68243.64677 | Q50: 9.485146712 | R50: 0.06060159567 | S50: 0.5044051431 | T50: 2395.318349 | U50: 36.12979607 | V50: 349.7215513 | W50: 373.9634625 | X50: 12.92301799 | Y50: 93.57206762 | Z50: 146.6187115 | AA50: 511.1777353 | AB50: 2.388733403 | AC50: 939.3443675 | AD50: 3336.084399 | AE50: 7794.104349 | AF50: 86.41334054 | AG50: 4.208928264 | AH50: 0.0003026107094 | AI50: 0.6786318033 | AJ50: 392.0133288 | AK50: 962.8303591 | AL50: 1.19670696 | AM50: 21471.15432 | AN50: 1.876815618 | AO50: 2162.766487 | AP50: 0.0004623707673 | AQ50: 0.0002997526083 | AR50: 5.313182427e-05 | AS50: 0.0001094863347 | AU50: 74.14379139 | AV50: 74.14379139
F51: 30 | G51: 36.47403668 | H51: 93.39582905 | I51: 74.52920808 | J51: 11.05138751 | K51: 2.784486296e-05 | L51: 0.03783756726 | M51: 378.0714913 | N51: 338.1596635 | O51: 0.5260568997 | P51: 69776.8904 | Q51: 8.132773669 | R51: 0.06046722357 | S51: 0.5217984239 | T51: 2356.250371 | U51: 36.47403668 | V51: 338.1596635 | W51: 378.0714913 | X51: 11.05138751 | Y51: 93.39582905 | Z51: 146.7740511 | AA51: 510.9348272 | AB51: 2.334138302 | AC51: 984.8352634 | AD51: 3411.808324 | AE51: 7787.419005 | AF51: 86.34745351 | AG51: 4.208749535 | AH51: 0.0003032043408 | AI51: 0.6785670939 | AJ51: 391.2715691 | AK51: 962.9518094 | AL51: 1.196556028 | AM51: 21429.11682 | AN51: 1.880596834 | AO51: 2193.887666 | AP51: 0.000455811852 | AQ51: 0.0002930997011 | AR51: 5.313182427e-05 | AS51: 0.0001095803266 | AU51: 74.52920808 | AV51: 74.52920808
F52: 31 | G52: 36.87866935 | H52: 93.21866683 | I52: =AO52*$D$39*(H52-G52) -> 74.87343896 | J52: 9.492355118 | K52: 2.725472032e-05 | L52: 0.03693887755 | M52: 382.2097332 | N52: 326.9878847 | O52: 0.5440300162 | P52: =N52*O52*$D$18/1000/K52 -> 71287.75962 | Q52: =J52*1000*K52/L52 -> 7.003772208 | R52: 0.06033821911 | S52: 0.5391917047 | T52: =NuPGfRePrDL(R52,P52,Q52,$E$18,S52) -> 2322.771865 | U52: =G52 -> 36.87866935 | V52: =N52 -> 326.9878847 | W52: =M52 -> 382.2097332 | X52: =J52 -> 9.492355118 | Y52: =H52 -> 93.21866683 | Z52: 146.930716 | AA52: 510.690418 | AB52: =(AA52-W52)/(Y52-U52) -> 2.280452442 | AC52: =T52*(Z52/V52)^0.3*(AB52/X52)^0.4 -> 1032.855708 | AD52: =AC52*L52/($D$18/1000) -> 3493.181699 | AE52: 7780.693143 | AF52: =0.023*AM52^0.8*AN52^0.4 -> 86.28120005 | AG52: 4.208570529 | AH52: 0.0003038031228 | AI52: 0.6785016339 | AJ52: 390.5259535 | AK52: 963.0737484 | AL52: 1.196404527 | AM52: =2*($E$30/2)*(1-($E$18/$E$30))*AL52*AK52/AH52 -> 21386.88102 | AN52: =AG52*1000*AH52/AI52 -> 1.884412366 | AO52: 2226.780474 | AP52: =SUM(AQ52:AS52) -> 0.0004490788435 | AQ52: =1/AD52 -> 0.0002862719682 | AR52: 5.313182427e-05 | AS52: =(($E$18/2)/($E$19/2))/AE52 -> 0.0001096750511 | AU52: 74.87343896 | AV52: 74.87343896
F53: 32 | G53: 37.35193508 | H53: 93.04067878 | I53: 75.15497176 | J53: 8.198677651 | K53: 2.669900434e-05 | L53: 0.0360921436 | M53: 386.3785931 | N53: 316.2042627 | O53: 0.5625832577 | P53: 72771.55081 | Q53: 6.064935699 | R53: 0.06021466598 | S53: 0.5565849855 | T53: 2295.319756 | U53: 37.35193508 | V53: 316.2042627 | W53: 386.3785931 | X53: 8.198677651 | Y53: 93.04067878 | Z53: 147.0886303 | AA53: 510.4446381 | AB53: 2.227847798 | AC53: 1083.386182 | AD53: 3580.08878 | AE53: 7773.93039 | AF53: 86.21461638 | AG53: 4.208391354 | AH53: 0.0003044067646 | AI53: 0.6784354522 | AJ53: 389.7768942 | AK53: 963.1961064 | AL53: 1.196252543 | AM53: 21344.47061 | AN53: 1.888260397 | AO53: 2261.292499 | AP53: 0.0004422249667 | AQ53: 0.000279322682 | AR53: 5.313182427e-05 | AS53: 0.0001097704604 | AU53: 75.15497176 | AV53: 75.15497176
F54: 33 | G54: 37.9019382 | H54: 92.86201386 | I54: 75.35058962 | J54: =cp_tp1(G54,$D$22*1000000)/1000 -> 7.127443251 | K54: =VMU_TP1(G54,$D$22*1000000) -> 2.617704012e-05 | L54: =k_tp1(G54,$D$22*1000000) -> 0.03529649866 | M54: =h_tp1(G54,$D$22*1000000)/1000 -> 390.5768229 | N54: =rho_tp1(G54,$D$22*1000000) -> 305.8109934 | O54: 0.5817031697 | P54: 74222.59895 | Q54: 5.285945492 | R54: 0.06009671425 | S54: 0.5739782663 | T54: 2274.0624 | U54: 37.9019382 | V54: 305.8109934 | W54: 390.5768229 | X54: 7.127443251 | Y54: 92.86201386 | Z54: =rho_tp1(H54,$D$22*1000000) -> 147.2476718 | AA54: =h_tp1(H54,$D$22*1000000)/1000 -> 510.1976886 | AB54: 2.17650475 | AC54: 1136.347919 | AD54: 3672.322175 | AE54: 7767.13633 | AF54: 86.1477579 | AG54: =cp_rt2(AK54,H54)/1000 -> 4.208212166 | AH54: =vmu_rt2(AK54,H54) -> 0.000305014797 | AI54: =k_rt2(AK54,H54) -> 0.678368598 | AJ54: =h_rt2(AK54,H54)/1000 -> 389.0250183 | AK54: =rho_tp2(H54,$D$33) -> 963.3187791 | AL54: 1.196100208 | AM54: 21301.92143 | AN54: 1.892137967 | AO54: 2297.23688 | AP54: 0.0004353055659 | AQ54: 0.0002723072629 | AR54: 5.313182427e-05 | AS54: 0.0001098664787 | AU54: 75.35058962 | AV54: 75.35058962
F55: 34 | G55: 38.53625197 | H55: 92.68287628 | I55: 75.43634447 | J55: 6.240797541 | K55: 2.568839355e-05 | L55: 0.03455137041 | M55: 394.8013218 | N55: 295.8134041 | O55: 0.6013629596 | P55: 75634.46687 | Q55: 4.639933566 | R55: 0.05998455978 | S55: 0.5913715471 | T55: 2258.927884 | U55: 38.53625197 | V55: 295.8134041 | W55: 394.8013218 | X55: 6.240797541 | Y55: 92.68287628 | Z55: 147.4076671 | AA55: 509.9498481 | AB55: 2.126605819 | AC55: 1191.603568 | AD55: 3769.596802 | AE55: 7760.31867 | AF55: 86.08070076 | AG55: 4.208033176 | AH55: 0.000305626555 | AI55: 0.6783011425 | AJ55: 388.2711854 | AK55: 963.4416247 | AL55: 1.195947697 | AM55: 21259.2824 | AN55: 1.896040862 | AO55: 2334.402262 | AP55: 0.0004283751846 | AQ55: 0.0002652803609 | AR55: 5.313182427e-05 | AS55: 0.0001099629995 | AU55: 75.43634447 | AV55: 75.43634447
F56: 35 | G56: 39.26150874 | H56: 92.5035272 | I56: 75.3884941 | J56: 5.506226891 | K56: 2.523276003e-05 | L56: 0.03385633449 | M56: 399.0470749 | N56: 286.2187639 | O56: 0.62152188 | P56: 77000.21514 | Q56: 4.103731367 | R56: 0.05987842087 | S56: 0.6087648279 | T56: 2249.650665 | U56: 39.26150874 | V56: 286.2187639 | W56: 399.0470749 | X56: 5.506226891 | Y56: 92.5035272 | Z56: 147.5683893 | AA56: 509.7014751 | AB56: 2.078328422 | AC56: 1248.957569 | AD56: 3871.555139 | AE56: 7753.487311 | AF56: 86.01354254 | AG56: 4.207854646 | AH56: 0.000306241169 | AI56: 0.6782331806 | AJ56: 387.5164945 | AK56: 963.5644631 | AL56: 1.195795233 | AM56: 21216.61585 | AN56: 1.899963556 | AO56: 2372.558903 | AP56: 0.0004214858474 | AQ56: 0.0002582941387 | AR56: 5.313182427e-05 | AS56: 0.0001100598845 | AU56: 75.3884941 | AV56: 75.3884941
F57: 36 | G57: 40.08299861 | H57: 92.32428427 | I57: 75.18442922 | J57: 4.89639859 | K57: 2.480986174e-05 | L57: 0.0332109775 | M57: 403.3071955 | N57: 277.0350727 | O57: 0.6421252821 | P57: 78312.72787 | Q57: 3.657795741 | R57: 0.05977851421 | S57: 0.6261581087 | T57: 2245.821075 | U57: 40.08299861 | V57: 277.0350727 | W57: 403.3071955 | X57: 4.89639859 | Y57: 92.32428427 | Z57: 147.7295575 | AA57: 509.4530077 | AB57: 2.031837671 | AC57: 1308.156921 | AD57: 3977.766899 | AE57: 7746.654343 | AF57: 85.94640211 | AG57: 4.207676892 | AH57: 0.0003068575622 | AI57: 0.6781648312 | AJ57: 386.7622823 | AK57: 963.6870764 | AL57: 1.195643088 | AM57: 21173.99745 | AN57: 1.903899192 | AO57: 2411.462415 | AP57: 0.0004146861231 | AQ57: 0.0002513973356 | AR57: 5.313182427e-05 | AS57: 0.0001101569633 | AU57: 75.18442922 | AV57: 75.18442922
F58: 37 | G58: 41.00430142 | H58: 92.14551898 | I58: 74.80361789 | J58: 4.388693223 | K58: 2.441935944e-05 | L58: 0.03261477875 | M58: 407.5730398 | N58: 268.2699469 | O58: 0.6631053022 | P58: 79565.06621 | Q58: 3.28590539 | R58: 0.05968503227 | S58: 0.6435513895 | T58: 2246.929353 | U58: 41.00430142 | V58: 268.2699469 | W58: 407.5730398 | X58: 4.388693223 | Y58: 92.14551898 | Z58: 147.8908386 | AA58: 509.2049606 | AB58: 1.987280037 | AC58: 1368.893718 | AD58: 4087.728049 | AE58: 7739.833949 | AF58: 85.87941867 | AG58: 4.207500277 | AH58: 0.0003074744569 | AI58: 0.678096237 | AJ58: 386.0101115 | AK58: 963.8092113 | AL58: 1.195491575 | AM58: 21131.51546 | AN58: 1.907839613 | AO58: 2450.85708 | AP58: 0.000408020528 | AQ58: 0.0002446346694 | AR58: 5.313182427e-05 | AS58: 0.0001102540343 | AU58: 74.80361789 | AV58: 74.80361789
F59: 38 | G59: 42.02697875 | H59: 91.96765167 | I59: 74.22855189 | J59: 3.96458832 | K59: 2.406078243e-05 | L59: 0.0320670161 | M59: 411.8343784 | N59: 259.9296674 | O59: 0.6843821484 | P59: 80750.82164 | Q59: 2.974741919 | R59: 0.05959812337 | S59: 0.6609446703 | T59: 2252.402005 | U59: 42.02697875 | V59: 259.9296674 | W59: 411.8343784 | X59: 3.96458832 | Y59: 91.96765167 | Z59: 148.0518503 | AA59: 508.9579182 | AB59: 1.944778357 | AC59: 1430.810465 | AD59: 4200.862682 | AE59: 7733.042227 | AF59: 85.81274992 | AG59: 4.207325208 | AH59: 0.0003080903877 | AI59: 0.6780275631 | AJ59: 385.2617503 | AK59: 963.930582 | AL59: 1.195341048 | AM59: 21089.26958 | AN59: 1.911775457 | AO59: 2490.479923 | AP59: 0.000401529035 | AQ59: 0.0002380463433 | AR59: 5.313182427e-05 | AS59: 0.0001103508674 | AU59: 74.22855189 | AV59: 74.22855189
F60: 39 | G60: 43.15035216 | H60: 91.7911444 | I60: 73.44563833 | J60: 3.609013812 | K60: 2.37334783e-05 | L60: 0.0315666982 | M60: 416.0796203 | N60: 252.01843 | O60: 0.7058659328 | P60: 81864.44172 | Q60: 2.713443466 | R60: 0.05951787573 | S60: 0.6783379511 | T60: 2261.631255 | U60: 43.15035216 | V60: 252.01843 | W60: 416.0796203 | X60: 3.609013812 | Y60: 91.7911444 | Z60: 148.2121675 | AA60: 508.7125255 | AB60: 1.904428379 | AC60: 1493.50852 | AD60: 4316.529272 | AE60: 7726.296921 | AF60: 85.74656941 | AG60: 4.207152124 | AH60: 0.000308703724 | AI60: 0.6779589951 | AJ60: 384.5191421 | AK60: 964.0508761 | AL60: 1.195191893 | AM60: 21047.36916 | AN60: 1.915696285 | AO60: 2530.065803 | AP60: 0.000395246637 | AQ60: 0.0002316676054 | AR60: 5.313182427e-05 | AS60: 0.0001104472073 | AU60: 73.44563833 | AV60: 73.44563833
F61: 40 | G61: 44.37138886 | H61: 91.61649163 | I61: 72.44595831 | J61: 3.309750143 | K61: 2.343658302e-05 | L61: 0.03111252408 | M61: 420.2960871 | N61: 244.5378134 | O61: 0.7274589632 | P61: 82901.50273 | Q61: 2.493183575 | R61: 0.05944430627 | S61: 0.6957312319 | T61: 2273.999042 | U61: 44.37138886 | V61: 244.5378134 | W61: 420.2960871 | X61: 3.309750143 | Y61: 91.61649163 | Z61: 148.3713298 | AA61: 508.4694748 | AB61: 1.866296875 | AC61: 1556.559314 | AD61: 4434.031233 | AE61: 7719.617071 | AF61: 85.68106306 | AG61: 4.206981493 | AH61: 0.0003093126997 | AI61: 0.6778907353 | AJ61: 383.7843663 | AK61: 964.1697605 | AL61: 1.195044523 | AM61: 21005.93105 | AN61: 1.919590776 | AO61: 2569.353206 | AP61: 0.0003892030094 | AQ61: 0.0002255284069 | AR61: 5.313182427e-05 | AS61: 0.0001105427782 | AU61: 72.44595831 | AV61: 72.44595831
F62: 41 | G62: 45.68470778 | H62: 91.4442091 | I62: 71.22581617 | J62: 3.056901016 | K62: 2.316901068e-05 | L62: 0.03070286923 | M62: 424.4703295 | N62: 237.4864672 | O62: 0.7490583623 | P62: 83858.90868 | Q62: 2.30679979 | R62: 0.05937735458 | S62: 0.7131245127 | T62: 2288.896701 | U62: 45.68470778 | V62: 237.4864672 | W62: 424.4703295 | X62: 3.056901016 | Y62: 91.4442091 | Z62: 148.5288512 | AA62: 508.229491 | AB62: 1.830421204 | AC62: 1619.517497 | AD62: 4552.63083 | AE62: 7713.022594 | AF62: 85.61642502 | AG62: 4.206813793 | AH62: 0.0003099154508 | AI62: 0.6778229993 | AJ62: 383.0595913 | AK62: 964.2868893 | AL62: 1.194899365 | AM62: 20965.07684 | AN62: 1.923446968 | AO62: 2608.090147 | AP62: 0.0003834223297 | AQ62: 0.0002196532153 | AR62: 5.313182427e-05 | AS62: 0.00011063729 | AU62: 71.22581617 | AV62: 71.22581617
F63: 42 | G63: 47.08270822 | H63: 91.27482142 | I63: 69.79396315 | J63: 2.842448472 | K63: 2.292946097e-05 | L63: 0.03034118031 | M63: 428.5884772 | N63: 230.8600077 | O63: 0.7705588593 | P63: 84735.00331 | Q63: 2.148097425 | R63: 0.05931688213 | S63: 0.7305177935 | T63: 2305.736493 | U63: 47.08270822 | V63: 230.8600077 | W63: 428.5884772 | X63: 2.842448472 | Y63: 91.27482142 | Z63: 148.6842317 | AA63: 507.9933141 | AB63: 1.796810134 | AC63: 1681.931756 | AD63: 4672.385524 | AE63: 7706.533804 | AF63: 85.552853 | AG63: 4.206649506 | AH63: 0.0003105100582 | AI63: 0.6777560106 | AJ63: 382.3470228 | AK63: 964.4019122 | AL63: 1.194756851 | AM63: 20924.93003 | AN63: 1.927252525 | AO63: 2646.302806 | AP63: 0.0003778857044 | AQ63: 0.0002140234351 | AR63: 5.313182427e-05 | AS63: 0.000110730445 | AU63: 69.79396315 | AV63: 69.79396315
F64: 43 | G64: 48.55595843 | H64: 91.10883245 | I64: 68.25798491 | J64: 2.659869218 | K64: 2.271642188e-05 | L64: 0.03010348691 | M64: 432.6369946 | N64: 224.6505098 | O64: 0.7918576477 | P64: 85529.66488 | Q64: 2.007166528 | R64: 0.05926267126 | S64: 0.7479110743 | T64: 2324.069264 | U64: 48.55595843 | V64: 224.6505098 | W64: 432.6369946 | X64: 2.659869218 | Y64: 91.10883245 | Z64: 148.8369839 | AA64: 507.7616576 | AB64: 1.765442752 | AC64: 1743.441763 | AD64: 4805.31737 | AE64: 7700.170284 | AF64: 85.49053718 | AG64: 4.206489086 | AH64: 0.0003110946521 | AI64: 0.6776899892 | AJ64: 381.6487787 | AK64: 964.5144946 | AL64: 1.194617394 | AM64: 20885.60892 | AN64: 1.93099541 | AO64: 2687.763254 | AP64: 0.0003720565785 | AQ64: 0.0002081028001 | AR64: 5.313182427e-05 | AS64: 0.0001108219541 | AU64: 68.25798491 | AV64: 68.25798491
F65: 44 | G65: 50.09568792 | H65: 90.94649027 | I65: 66.50903858 | J65: 2.503651246 | K65: 2.25279751e-05 | L65: 0.02989625443 | M65: 436.6083265 | N65: 218.8393068 | O65: 0.8128851569 | P65: 86245.12155 | Q65: 1.886597301 | R65: 0.05921437438 | S65: 0.7653043551 | T65: 2343.630782 | U65: 50.09568792 | V65: 218.8393068 | W65: 436.6083265 | X65: 2.503651246 | Y65: 90.94649027 | Z65: 148.9868516 | AA65: 507.5348804 | AB65: 1.736234048 | AC65: 1803.888757 | AD65: 4937.69614 | AE65: 7693.941848 | AF65: 85.42957185 | AG65: 4.206332737 | AH65: 0.0003116682461 | AI65: 0.6776250567 | AJ65: 380.9659008 | AK65: 964.6244764 | AL65: 1.194481189 | AM65: 20847.17106 | AN65: 1.93466923 | AO65: 2728.013567 | AP65: 0.0003665670919 | AQ65: 0.0002025236004 | AR65: 5.313182427e-05 | AS65: 0.0001109116672 | AU65: 66.50903858 | AV65: 66.50903858
F66: 45 | G66: 51.68957698 | H66: 90.78830183 | I66: 64.56274952 | J66: 2.369576231 | K66: 2.236246824e-05 | L66: 0.02971743938 | M66: 440.4887917 | N66: 213.4160961 | O66: 0.8335417407 | P66: 86883.4303 | Q66: 1.783113697 | R66: 0.05917168638 | S66: 0.7826976359 | T66: 2363.949966 | U66: 51.68957698 | V66: 213.4160961 | W66: 440.4887917 | X66: 2.369576231 | Y66: 90.78830183 | Z66: 149.1333358 | AA66: 507.3137044 | AB66: 1.70913279 | AC66: 1862.878786 | AD66: 5068.667588 | AE66: 7687.86828 | AF66: 85.37014868 | AG66: 4.206180906 | AH66: 0.0003122289254 | AI66: 0.6775614408 | AJ66: 380.3005196 | AK66: 964.7315232 | AL66: 1.19434865 | AM66: 20809.73514 | AN66: 1.938261632 | AO66: 2766.851625 | AP66: 0.0003614216212 | AQ66: 0.0001972905073 | AR66: 5.313182427e-05 | AS66: 0.0001109992896 | AU66: 64.56274952 | AV66: 64.56274952
F67: 46 | G67: 53.32436927 | H67: 90.63473701 | I67: 62.43924343 | J67: 2.254167994 | K67: 2.221815151e-05 | L67: 0.02956484759 | M67: 444.2655608 | N67: 208.3683265 | O67: 0.8537344766 | P67: 87447.77665 | Q67: 1.694020099 | R67: 0.05913425463 | S67: 0.8000909167 | T67: 2384.606924 | U67: 53.32436927 | V67: 208.3683265 | W67: 444.2655608 | X67: 2.254167994 | Y67: 90.63473701 | Z67: 149.2759668 | AA67: 507.098802 | AB67: 1.684069201 | AC67: 1920.055219 | AD67: 5197.412554 | AE67: 7681.967984 | AF67: 85.31244558 | AG67: 4.206034 | AH67: 0.000312774887 | AI67: 0.6774993581 | AJ67: 379.6546095 | AK67: 964.8353268 | AL67: 1.194220153 | AM67: 20773.41088 | AN67: 1.941760968 | AO67: 2804.106793 | AP67: 0.0003566197987 | AQ67: 0.0001924034295 | AR67: 5.313182427e-05 | AS67: 0.0001110845449 | AU67: 62.43924343 | AV67: 62.43924343
F68: 47 | G68: 54.98633707 | H68: 90.48621783 | I68: 60.16226933 | J68: 2.154548739 | K68: 2.20932209e-05 | L68: 0.02943619193 | M68: 447.926955 | N68: 203.6815662 | O68: 0.873379106 | P68: 87942.2679 | Q68: 1.617088289 | R68: 0.05910169185 | S68: 0.8174841975 | T68: 2405.237191 | U68: 54.98633707 | V68: 203.6815662 | W68: 447.926955 | X68: 2.154548739 | Y68: 90.48621783 | Z68: 149.414315 | AA68: 506.8907805 | AB68: 1.66095841 | AC68: 1975.108824 | AD68: 5323.171801 | AE68: 7676.25757 | AF68: 85.25662267 | AG68: 4.205892378 | AH68: 0.0003133044816 | AI68: 0.6774390088 | AJ68: 379.0299433 | AK68: 964.9356126 | AL68: 1.194096038 | AM68: 20738.29652 | AN68: 1.945156559 | AO68: 2839.643118 | AP68: 0.000352156929 | AQ68: 0.0001878579233 | AR68: 5.313182427e-05 | AS68: 0.0001111671814 | AU68: 60.16226933 | AV68: 60.16226933
F69: 48 | G69: 56.66173948 | H69: 90.34310989 | I69: 57.75817834 | J69: 2.068324954 | K69: 2.198585983e-05 | L69: 0.02932914898 | M69: 451.4626918 | N69: 199.3398844 | O69: 0.8924015619 | P69: 88371.70645 | Q69: 1.550467849 | R69: 0.05907358923 | S69: 0.8348774783 | T69: 2425.533914 | U69: 56.66173948 | V69: 199.3398844 | W69: 451.4626918 | X69: 2.068324954 | Y69: 90.34310989 | Z69: 149.548 | AA69: 506.6901699 | AB69: 1.63970401 | AC69: 2027.785197 | AD69: 5445.267728 | AE69: 7670.751502 | AF69: 85.20281896 | AG69: 4.20575634 | AH69: 0.0003138162483 | AI69: 0.6773805727 | AJ69: 378.4280564 | AK69: 965.0321446 | AL69: 1.193976593 | AM69: 20704.47683 | AN69: 1.948438926 | AO69: 2873.36092 | AP69: 0.0003480245009 | AQ69: 0.0001836456993 | AR69: 5.313182427e-05 | AS69: 0.0001112469772 | AU69: 57.75817834 | AV69: 57.75817834
F70: 49 | G70: 58.3372454 | H70: 90.20571611 | I70: 55.25483608 | J70: 1.993497372 | K70: 2.189427711e-05 | L70: 0.02924141174 | M70: 454.8640681 | N70: 195.3262313 | O70: 0.9107390393 | P70: 88741.36109 | Q70: 1.492615482 | R70: 0.05904952877 | S70: 0.8522707591 | T70: 2445.247844 | U70: 58.3372454 | V70: 195.3262313 | W70: 454.8640681 | X70: 1.993497372 | Y70: 90.20571611 | Z70: 149.6766974 | AA70: 506.4974132 | AB70: 1.620201532 | AC70: 2077.888883 | AD70: 5563.120708 | AE70: 7665.461859 | AF70: 85.15114998 | AG70: 4.205626124 | AH70: 0.0003143089411 | AI70: 0.6773242057 | AJ70: 377.8502206 | AK70: 965.1247301 | AL70: 1.193862053 | AM70: 20672.02167 | AN70: 1.951599961 | AO70: 2905.196541 | AP70: 0.0003442107912 | AQ70: 0.0001797552224 | AR70: 5.313182427e-05 | AS70: 0.0001113237445 | AU70: 55.25483608 | AV70: 55.25483608
F71: 50 | G71: 60.00029759 | H71: 90.07427315 | I71: 52.68055041 | J71: 1.928389938 | K71: 2.181673968e-05 | L71: 0.029170736 | M71: 458.1240762 | N71: 191.622802 | O71: 0.9283405855 | P71: 89056.7509 | Q71: 1.44223928 | R71: 0.05902909449 | S71: 0.8696640399 | T71: 2464.185171 | U71: 60.00029759 | V71: 191.622802 | W71: 458.1240762 | X71: 1.928389938 | Y71: 90.07427315 | Z71: 149.8001435 | AA71: 506.3128612 | AB71: 1.602341695 | AC71: 2125.283955 | AD71: 5676.258668 | AE71: 7660.398176 | AF71: 85.10170642 | AG71: 4.205501905 | AH71: 0.0003147815463 | AI71: 0.6772700372 | AJ71: 377.2974288 | AK71: 965.2132208 | AL71: 1.1937526 | AM71: 20640.98521 | AN71: 1.954633041 | AO71: 2935.120313 | AP71: 0.0003407015363 | AQ71: 0.0001761723802 | AR71: 5.313182427e-05 | AS71: 0.0001113973319

Sheet Properties
C6: P [MPa]: | D6: 8
C8: T | D8: rho | E8: mu | F8: Cp | G8: k
C9: 4 | D9: =rho_tp1(C9,$D$6*1000000) -> 939.741469 | E9: =VMU_TP1(C9,$D$6*1000000)*1000000 -> 102.8366274 | F9: =cp_tp1(C9,$D$6*1000000)/1000 -> 2.328624526 | G9: =k_tp1(C9,$D$6*1000000) -> 0.1158963828
C10: 4.1 | D10: =rho_tp1(C10,$D$6*1000000) -> 939.1664152 | E10: =VMU_TP1(C10,$D$6*1000000)*1000000 -> 102.6721442 | F10: =cp_tp1(C10,$D$6*1000000)/1000 -> 2.330705192 | G10: =k_tp1(C10,$D$6*1000000) -> 0.1157845872
C11: 4.2 | D11: 938.5903079 | E11: 102.50773 | F11: 2.332798108 | G11: 0.1156727431
C12: 4.3 | D12: 938.0131409 | E12: 102.3433839 | F12: 2.334903384 | G12: 0.1155608499
C13: 4.4 | D13: 937.4349082 | E13: 102.1791052 | F13: 2.337021132 | G13: 0.1154489071
C14: 4.5 | D14: 936.8556035 | E14: 102.0148931 | F14: 2.339151466 | G14: 0.1153369141
C15: 4.6 | D15: 936.2752206 | E15: 101.8507468 | F15: 2.341294502 | G15: 0.1152248702
C16: 4.7 | D16: 935.6937532 | E16: 101.6866656 | F16: 2.343450357 | G16: 0.115112775
C17: 4.8 | D17: 935.1111949 | E17: 101.5226486 | F17: 2.345619149 | G17: 0.1150006278
C18: 4.9 | D18: 934.5275392 | E18: 101.3586951 | F18: 2.347801 | G18: 0.114888428
C19: 5 | D19: 933.9427797 | E19: 101.1948043 | F19: 2.34999603 | G19: 0.114776175
C20: 5.1 | D20: 933.3569099 | E20: 101.0309754 | F20: 2.352204365 | G20: 0.1146638682
C21: 5.2 | D21: 932.769923 | E21: 100.8672076 | F21: 2.354426128 | G21: 0.1145515069
C22: 5.3 | D22: 932.1818125 | E22: 100.7035 | F22: 2.356661449 | G22: 0.1144390907
C23: 5.4 | D23: 931.5925716 | E23: 100.5398519 | F23: 2.358910456 | G23: 0.1140635918
C24: 5.5 | D24: 931.0021934 | E24: 100.3762625 | F24: 2.361173279 | G24: 0.113955285
C25: 5.6 | D25: 930.4106711 | E25: 100.2127308 | F25: 2.363450053 | G25: 0.1138468515
C26: 5.7 | D26: 929.8179978 | E26: 100.0492561 | F26: 2.365740912 | G26: 0.1137382907
C27: 5.8 | D27: 929.2241664 | E27: 99.88583762 | F27: 2.368045992 | G27: 0.1136296014
C28: 5.9 | D28: 928.6291699 | E28: 99.7224744 | F28: 2.370365434 | G28: 0.113520783
C29: 6 | D29: 928.033001 | E29: 99.55916564 | F29: 2.372699377 | G29: 0.1134118344
C30: 6.1 | D30: 927.4356527 | E30: 99.39591048 | F30: 2.375047965 | G30: 0.1133027547
C31: 6.2 | D31: 926.8371176 | E31: 99.23270809 | F31: 2.377411343 | G31: 0.1131935431
C32: 6.3 | D32: 926.2373884 | E32: 99.06955758 | F32: 2.379789658 | G32: 0.1130841986
C33: 6.4 | D33: 925.6364575 | E33: 98.90645809 | F33: 2.38218306 | G33: 0.1129747203
C34: 6.5 | D34: 925.0343176 | E34: 98.74340874 | F34: 2.384591701 | G34: 0.1128651072
C35: 6.6 | D35: 924.4309609 | E35: 98.58040866 | F35: 2.387015734 | G35: 0.1127553584
C36: 6.7 | D36: 923.82638 | E36: 98.41745695 | F36: 2.389455317 | G36: 0.1126454729
C37: 6.8 | D37: 923.2205669 | E37: 98.25455273 | F37: 2.391910608 | G37: 0.1125354497
C38: 6.9 | D38: 922.6135139 | E38: 98.09169509 | F38: 2.394381768 | G38: 0.1124252879
C39: 7 | D39: 922.0052131 | E39: 97.92888313 | F39: 2.396868961 | G39: 0.1123149864
C40: 7.1 | D40: 921.3956566 | E40: 97.76611593 | F40: 2.399372354 | G40: 0.1122045443
C41: 7.2 | D41: 920.7848361 | E41: 97.60339257 | F41: 2.401892115 | G41: 0.1120939605
C42: 7.3 | D42: 920.1727437 | E42: 97.44071213 | F42: 2.404428416 | G42: 0.111983234
C43: 7.4 | D43: 919.5593711 | E43: 97.27807368 | F43: 2.40698143 | G43: 0.1118723638
C44: 7.5 | D44: 918.9447099 | E44: 97.11547626 | F44: 2.409551336 | G44: 0.1117613488
C45: 7.6 | D45: 918.3287518 | E45: 96.95291894 | F45: 2.412138312 | G45: 0.111650188
C46: 7.7 | D46: 917.7114882 | E46: 96.79040076 | F46: 2.414742541 | G46: 0.1115388803
C47: 7.8 | D47: 917.0929106 | E47: 96.62792076 | F47: 2.417364208 | G47: 0.1114274246
C48: 7.9 | D48: 916.4730103 | E48: 96.46547796 | F48: 2.420003502 | G48: 0.1113158198
C49: 8 | D49: 915.8517785 | E49: 96.30307138 | F49: 2.422660614 | G49: 0.1112040649
C50: 8.1 | D50: 915.2292064 | E50: 96.14070005 | F50: 2.425335738 | G50: 0.1110921587
C51: 8.2 | D51: 914.605285 | E51: 95.97836297 | F51: 2.428029073 | G51: 0.1109801001
C52: 8.3 | D52: 913.9800053 | E52: 95.81605913 | F52: 2.430740818 | G52: 0.1108678879
C53: 8.4 | D53: 913.3533581 | E53: 95.65378753 | F53: 2.433471177 | G53: 0.110755521
C54: 8.5 | D54: 912.7253342 | E54: 95.49154714 | F54: 2.436220358 | G54: 0.1106429983
C55: 8.6 | D55: 912.0959241 | E55: 95.32933694 | F55: 2.438988572 | G55: 0.1105303185
C56: 8.7 | D56: 911.4651185 | E56: 95.1671559 | F56: 2.441776032 | G56: 0.1104174804
C57: 8.8 | D57: 910.8329078 | E57: 95.00500296 | F57: 2.444582955 | G57: 0.110304483
C58: 8.9 | D58: 910.1992823 | E58: 94.84287708 | F58: 2.447409564 | G58: 0.1101913249
C59: 9 | D59: 909.5642323 | E59: 94.68077719 | F59: 2.450256081 | G59: 0.1100780049
C60: 9.1 | D60: 908.9277478 | E60: 94.51870222 | F60: 2.453122737 | G60: 0.1099645218
C61: 9.2 | D61: 908.2898188 | E61: 94.35665109 | F61: 2.456009762 | G61: 0.1098508744
C62: 9.3 | D62: 907.6504354 | E62: 94.1946227 | F62: 2.458917394 | G62: 0.1097370612
C63: 9.4 | D63: 907.0095871 | E63: 94.03261596 | F63: 2.461845871 | G63: 0.1096230812
C64: 9.5 | D64: 906.3672638 | E64: 93.87062975 | F64: 2.464795437 | G64: 0.1095089329
C65: 9.6 | D65: 905.7234548 | E65: 93.70866296 | F65: 2.467766341 | G65: 0.1093946151
C66: 9.7 | D66: 905.0781498 | E66: 93.54671445 | F66: 2.470758835 | G66: 0.1092801264
C67: 9.8 | D67: 904.4313378 | E67: 93.38478307 | F67: 2.473773174 | G67: 0.1091654655
C68: 9.9 | D68: 903.7830082 | E68: 93.22286768 | F68: 2.476809619 | G68: 0.109050631
C69: 10 | D69: 903.13315 | E69: 93.06096712 | F69: 2.479868435 | G69: 0.1089356216
C70: 10.1 | D70: 902.481752 | E70: 92.8990802 | F70: 2.482949892 | G70: 0.1088204358
C71: 10.2 | D71: 901.8288031 | E71: 92.73720574 | F71: 2.486054263 | G71: 0.1087050723
C72: 10.3 | D72: 901.174292 | E72: 92.57534255 | F72: 2.489181826 | G72: 0.1085895296
C73: 10.4 | D73: 900.518207 | E73: 92.41348941 | F73: 2.492332866 | G73: 0.1084738062
C74: 10.5 | D74: =rho_tp1(C74,$D$6*1000000) -> 899.8605368 | E74: =VMU_TP1(C74,$D$6*1000000)*1000000 -> 92.25164511 | F74: =cp_tp1(C74,$D$6*1000000)/1000 -> 2.495507669 | G74: =k_tp1(C74,$D$6*1000000) -> 0.1083579008
C75: 10.6 | D75: 899.2012693 | E75: 92.08980841 | F75: 2.49870653 | G75: 0.1082418119
C76: 10.7 | D76: 898.5403929 | E76: 91.92797806 | F76: 2.501929745 | G76: 0.1081255378
C77: 10.8 | D77: 897.8778954 | E77: 91.76615281 | F77: 2.505177617 | G77: 0.1080090773
C78: 10.9 | D78: 897.2137646 | E78: 91.60433139 | F78: 2.508450455 | G78: 0.1078924286
C79: 11 | D79: 896.5479883 | E79: 91.44251252 | F79: 2.511748573 | G79: 0.1077755903
C80: 11.1 | D80: 895.8805538 | E80: 91.28069489 | F80: 2.515072288 | G80: 0.1076585607
C81: 11.2 | D81: 895.2114487 | E81: 91.11887721 | F81: 2.518421925 | G81: 0.1075413384
C82: 11.3 | D82: 894.54066 | E82: 90.95705813 | F82: 2.521797814 | G82: 0.1074239217
C83: 11.4 | D83: 893.8681748 | E83: 90.79523634 | F83: 2.52520029 | G83: 0.107306309
C84: 11.5 | D84: 893.19398 | E84: 90.63341047 | F84: 2.528629695 | G84: 0.1071884985
C85: 11.6 | D85: 892.5180624 | E85: 90.47157916 | F85: 2.532086374 | G85: 0.1070704888
C86: 11.7 | D86: 891.8404084 | E86: 90.30974104 | F86: 2.535570683 | G86: 0.106952278
C87: 11.8 | D87: 891.1610044 | E87: 90.1478947 | F87: 2.539082979 | G87: 0.1068338645
C88: 11.9 | D88: 890.4798367 | E88: 89.98603873 | F88: 2.542623629 | G88: 0.1067152465
C89: 12 | D89: 889.7968913 | E89: 89.82417171 | F89: 2.546193003 | G89: 0.1065964223
C90: 12.1 | D90: 889.1121539 | E90: 89.66229221 | F90: 2.54979148 | G90: 0.10647739
C91: 12.2 | D91: 888.4256104 | E91: 89.50039875 | F91: 2.553419445 | G91: 0.106358148
C92: 12.3 | D92: 887.7372461 | E92: 89.33848988 | F92: 2.55707729 | G92: 0.1062386944
C93: 12.4 | D93: 887.0470464 | E93: 89.17656409 | F93: 2.560765412 | G93: 0.1061190273
C94: 12.5 | D94: 886.3549964 | E94: 89.01461989 | F94: 2.564484218 | G94: 0.1059991449
C95: 12.6 | D95: 885.6610809 | E95: 88.85265575 | F95: 2.568234118 | G95: 0.1058790453
C96: 12.7 | D96: 884.9652847 | E96: 88.69067012 | F96: 2.572015533 | G96: 0.1057587265
C97: 12.8 | D97: 884.2675922 | E97: 88.52866146 | F97: 2.57582889 | G97: 0.1056381867
C98: 12.9 | D98: 883.5679879 | E98: 88.36662819 | F98: 2.579674624 | G98: 0.1055174238
C99: 13 | D99: 882.8664556 | E99: 88.2045687 | F99: 2.583553175 | G99: 0.1053964359
C100: 13.1 | D100: 882.1629795 | E100: 88.0424814 | F100: 2.587464995 | G100: 0.1052752209
C101: 13.2 | D101: 881.457543 | E101: 87.88036464 | F101: 2.59141054 | G101: 0.1051537768
C102: 13.3 | D102: 880.7501297 | E102: 87.71821678 | F102: 2.595390278 | G102: 0.1050321015
C103: 13.4 | D103: 880.0407227 | E103: 87.55603614 | F103: 2.599404681 | G103: 0.1049101929
C104: 13.5 | D104: 879.329305 | E104: 87.39382104 | F104: 2.603454232 | G104: 0.1047880489
C105: 13.6 | D105: 878.6158594 | E105: 87.23156976 | F105: 2.607539422 | G105: 0.1046656674
C106: 13.7 | D106: 877.9003684 | E106: 87.06928059 | F106: 2.611660752 | G106: 0.1045430461
C107: 13.8 | D107: 877.1828142 | E107: 86.90695175 | F107: 2.615818729 | G107: 0.1044201827
C108: 13.9 | D108: 876.463179 | E108: 86.74458149 | F108: 2.620013872 | G108: 0.1042970752
C109: 14 | D109: 875.7414443 | E109: 86.582168 | F109: 2.624246707 | G109: 0.1041737212
C110: 14.1 | D110: 875.0175919 | E110: 86.41970947 | F110: 2.628517771 | G110: 0.1040501183
C111: 14.2 | D111: 874.2916029 | E111: 86.25720406 | F111: 2.632827609 | G111: 0.1039262643
C112: 14.3 | D112: 873.5634584 | E112: 86.09464991 | F112: 2.637176778 | G112: 0.1038021567
C113: 14.4 | D113: 872.833139 | E113: 85.93204514 | F113: 2.641565843 | G113: 0.1036777931
C114: 14.5 | D114: 872.1006252 | E114: 85.76938783 | F114: 2.64599538 | G114: 0.1035531712
C115: 14.6 | D115: 871.3658972 | E115: 85.60667606 | F115: 2.650465975 | G115: 0.1034282884
C116: 14.7 | D116: 870.6289349 | E116: 85.44390787 | F116: 2.654978225 | G116: 0.1033031422
C117: 14.8 | D117: 869.8897178 | E117: 85.28108127 | F117: 2.659532738 | G117: 0.1031777301
C118: 14.9 | D118: 869.1482253 | E118: 85.11819427 | F118: 2.664130133 | G118: 0.1030520494
C119: 15 | D119: 868.4044364 | E119: 84.95524482 | F119: 2.668771039 | G119: 0.1029260977
C120: 15.1 | D120: 867.6583298 | E120: 84.79223088 | F120: 2.673456099 | G120: 0.1027998721
C121: 15.2 | D121: 866.9098838 | E121: 84.62915035 | F121: 2.678185964 | G121: 0.10267337
C122: 15.3 | D122: 866.1590765 | E122: 84.46600112 | F122: 2.6829613 | G122: 0.1025465887
C123: 15.4 | D123: 865.4058857 | E123: 84.30278107 | F123: 2.687782785 | G123: 0.1024195254
C124: 15.5 | D124: 864.6502888 | E124: 84.13948801 | F124: 2.692651109 | G124: 0.1022921773
C125: 15.6 | D125: 863.8922628 | E125: 83.97611975 | F125: 2.697566973 | G125: 0.1021645415
C126: 15.7 | D126: 863.1317844 | E126: 83.81267408 | F126: 2.702531093 | G126: 0.1020366151
C127: 15.8 | D127: 862.3688301 | E127: 83.64914873 | F127: 2.707544199 | G127: 0.1019083952
C128: 15.9 | D128: 861.6033759 | E128: 83.48554142 | F128: 2.712607032 | G128: 0.1017798788
C129: 16 | D129: 860.8353975 | E129: 83.32184984 | F129: 2.717720348 | G129: 0.1016510628
C130: 16.1 | D130: 860.06487 | E130: 83.15807165 | F130: 2.722884919 | G130: 0.1015219443
C131: 16.2 | D131: 859.2917685 | E131: 82.99420446 | F131: 2.728101529 | G131: 0.10139252
C132: 16.3 | D132: 858.5160674 | E132: 82.83024587 | F132: 2.733370977 | G132: 0.1012627869
C133: 16.4 | D133: 857.7377409 | E133: 82.66619344 | F133: 2.738694079 | G133: 0.1011327416
C134: 16.5 | D134: 856.9567628 | E134: 82.5020447 | F134: 2.744071664 | G134: 0.101002381
C135: 16.6 | D135: 856.1731063 | E135: 82.33779713 | F135: 2.74950458 | G135: 0.1008717017
C136: 16.7 | D136: 855.3867443 | E136: 82.17344819 | F136: 2.754993687 | G136: 0.1007407003
C137: 16.8 | D137: 854.5976494 | E137: 82.0089953 | F137: 2.760539866 | G137: 0.1006093735
C138: 16.9 | D138: =rho_tp1(C138,$D$6*1000000) -> 853.8057936 | E138: =VMU_TP1(C138,$D$6*1000000)*1000000 -> 81.84443586 | F138: =cp_tp1(C138,$D$6*1000000)/1000 -> 2.766144013 | G138: =k_tp1(C138,$D$6*1000000) -> 0.1004777178
C139: 17 | D139: 853.0111485 | E139: 81.67976721 | F139: 2.771807039 | G139: 0.1003457296
C140: 17.1 | D140: 852.2136852 | E140: 81.51498666 | F140: 2.777529878 | G140: 0.1002134054
C141: 17.2 | D141: 851.4133745 | E141: 81.3500915 | F141: 2.783313478 | G141: 0.1000807416
C142: 17.3 | D142: 850.6101865 | E142: 81.18507896 | F142: 2.789158807 | G142: 0.09994773445
C143: 17.4 | D143: 849.8040911 | E143: 81.01994623 | F143: 2.795066853 | G143: 0.09981438023
C144: 17.5 | D144: 848.9950574 | E144: 80.85469048 | F144: 2.801038623 | G144: 0.09968067514
C145: 17.6 | D145: 848.1830542 | E145: 80.68930882 | F145: 2.807075143 | G145: 0.09954661533
C146: 17.7 | D146: 847.3680498 | E146: 80.52379833 | F146: 2.813177462 | G146: 0.09941219686
C147: 17.8 | D147: 846.5500119 | E147: 80.35815604 | F147: 2.819346649 | G147: 0.09927741575
C148: 17.9 | D148: 845.7289077 | E148: 80.19237896 | F148: 2.825583794 | G148: 0.09914226796
C149: 18 | D149: 844.9047039 | E149: 80.02646401 | F149: 2.831890011 | G149: 0.09900674938
C150: 18.1 | D150: 844.0773665 | E150: 79.86040812 | F150: 2.838266437 | G150: 0.09887085582
C151: 18.2 | D151: 843.246861 | E151: 79.69420814 | F151: 2.84471423 | G151: 0.09873458304
C152: 18.3 | D152: 842.4131524 | E152: 79.52786087 | F152: 2.851234575 | G152: 0.09859792673
C153: 18.4 | D153: 841.5762052 | E153: 79.36136308 | F153: 2.857828681 | G153: 0.0984608825
C154: 18.5 | D154: 840.7359829 | E154: 79.1947115 | F154: 2.864497783 | G154: 0.09832344589
C155: 18.6 | D155: 839.8924488 | E155: 79.02790278 | F155: 2.871243142 | G155: 0.09818561238
C156: 18.7 | D156: 839.0455654 | E156: 78.86093355 | F156: 2.878066047 | G156: 0.09804737736
C157: 18.8 | D157: 838.1952944 | E157: 78.69380037 | F157: 2.884967813 | G157: 0.09790873615
C158: 18.9 | D158: 837.3415972 | E158: 78.52649975 | F158: 2.891949786 | G158: 0.097769684
C159: 19 | D159: 836.4844343 | E159: 78.35902816 | F159: 2.899013341 | G159: 0.09763021605
C160: 19.1 | D160: 835.6237654 | E160: 78.19138199 | F160: 2.906159884 | G160: 0.0974903274
C161: 19.2 | D161: 834.7595497 | E161: 78.02355761 | F161: 2.913390851 | G161: 0.09735001305
C162: 19.3 | D162: 833.8917457 | E162: 77.85555131 | F162: 2.920707713 | G162: 0.09720926789
C163: 19.4 | D163: 833.0203109 | E163: 77.68735932 | F163: 2.928111972 | G163: 0.09706808677
C164: 19.5 | D164: 832.1452022 | E164: 77.51897781 | F164: 2.935605167 | G164: 0.0969264644
C165: 19.6 | D165: 831.2663759 | E165: 77.35040291 | F165: 2.943188871 | G165: 0.09678439545
C166: 19.7 | D166: 830.3837872 | E166: 77.18163066 | F166: 2.950864697 | G166: 0.09664187446
C167: 19.8 | D167: 829.4973907 | E167: 77.01265706 | F167: 2.958634292 | G167: 0.09649889589
C168: 19.9 | D168: 828.60714 | E168: 76.84347803 | F168: 2.966499346 | G168: 0.0963554541
C169: 20 | D169: 827.7129881 | E169: 76.67408944 | F169: 2.974461589 | G169: 0.09621154334
C170: 20.1 | D170: 826.8148868 | E170: 76.50448706 | F170: 2.982522793 | G170: 0.09606715778
C171: 20.2 | D171: 825.9127872 | E171: 76.33466663 | F171: 2.990684774 | G171: 0.09592229146
C172: 20.3 | D172: 825.0066396 | E172: 76.16462378 | F172: 2.998949394 | G172: 0.09577693834
C173: 20.4 | D173: 824.096393 | E173: 75.99435411 | F173: 3.007318563 | G173: 0.09563109225
C174: 20.5 | D174: 823.1819957 | E174: 75.8238531 | F174: 3.015794236 | G174: 0.09548474691
C175: 20.6 | D175: 822.263395 | E175: 75.65311618 | F175: 3.024378424 | G175: 0.09533789592
C176: 20.7 | D176: 821.3405372 | E176: 75.48213871 | F176: 3.033073187 | G176: 0.09519053278
C177: 20.8 | D177: 820.4133673 | E177: 75.31091593 | F177: 3.041880641 | G177: 0.09504265086
C178: 20.9 | D178: 819.4818295 | E178: 75.13944304 | F178: 3.050802957 | G178: 0.09489424339
C179: 21 | D179: 818.5458669 | E179: 74.96771512 | F179: 3.059842369 | G179: 0.09474530348
C180: 21.1 | D180: 817.6054213 | E180: 74.7957272 | F180: 3.069001167 | G180: 0.09459582413
C181: 21.2 | D181: 816.6604334 | E181: 74.62347417 | F181: 3.078281708 | G181: 0.09444579818
C182: 21.3 | D182: 815.7108427 | E182: 74.45095087 | F182: 3.087686415 | G182: 0.09429521834
C183: 21.4 | D183: 814.7565876 | E183: 74.27815203 | F183: 3.09721778 | G183: 0.09414407716
C184: 21.5 | D184: 813.797605 | E184: 74.10507227 | F184: 3.106878365 | G184: 0.09399236708
C185: 21.6 | D185: 812.8338307 | E185: 73.93170613 | F185: 3.116670809 | G185: 0.09384008035
C186: 21.7 | D186: 811.8651991 | E186: 73.75804803 | F186: 3.126597828 | G186: 0.09368720909
C187: 21.8 | D187: 810.8916432 | E187: 73.58409229 | F187: 3.136662219 | G187: 0.09353374525
C188: 21.9 | D188: 809.9130945 | E188: 73.40983312 | F188: 3.146866865 | G188: 0.09337968062
C189: 22 | D189: 808.9294832 | E189: 73.2352646 | F189: 3.157214735 | G189: 0.09322500681
C190: 22.1 | D190: 807.9407379 | E190: 73.06038072 | F190: 3.167708895 | G190: 0.09306971526
C191: 22.2 | D191: 806.9467856 | E191: 72.88517532 | F191: 3.178352501 | G191: 0.09291379725
C192: 22.3 | D192: 805.9475518 | E192: 72.70964214 | F192: 3.189148816 | G192: 0.09275724383
C193: 22.4 | D193: 804.9429603 | E193: 72.53377476 | F193: 3.200101205 | G193: 0.0926000459
C194: 22.5 | D194: 803.9329332 | E194: 72.35756666 | F194: 3.211213143 | G194: 0.09244219414
C195: 22.6 | D195: 802.9173908 | E195: 72.18101116 | F195: 3.222488221 | G195: 0.09228367903
C196: 22.7 | D196: 801.8962516 | E196: 72.00410143 | F196: 3.233930151 | G196: 0.09212449083
C197: 22.8 | D197: 800.8694322 | E197: 71.82683052 | F197: 3.245542771 | G197: 0.0919646196
C198: 22.9 | D198: 799.8368473 | E198: 71.64919129 | F198: 3.257330051 | G198: 0.09180405516
C199: 23 | D199: 798.7984095 | E199: 71.47117646 | F199: 3.269296098 | G199: 0.0916427871
C200: 23.1 | D200: 797.7540294 | E200: 71.29277859 | F200: 3.281445167 | G200: 0.09148080476
C201: 23.2 | D201: 796.7036155 | E201: 71.11399006 | F201: 3.293781663 | G201: 0.09131809724
C202: 23.3 | D202: =rho_tp1(C202,$D$6*1000000) -> 795.6470738 | E202: =VMU_TP1(C202,$D$6*1000000)*1000000 -> 70.93480307 | F202: =cp_tp1(C202,$D$6*1000000)/1000 -> 3.306310152 | G202: =k_tp1(C202,$D$6*1000000) -> 0.09115465338
C203: 23.4 | D203: 794.5843083 | E203: 70.75520964 | F203: 3.319035367 | G203: 0.09099046175
C204: 23.5 | D204: 793.5152204 | E204: 70.57520159 | F204: 3.331962217 | G204: 0.09082551062
C205: 23.6 | D205: 792.4397092 | E205: 70.39477054 | F205: 3.345095795 | G205: 0.09065978801
C206: 23.7 | D206: 791.3576709 | E206: 70.21390792 | F206: 3.358441388 | G206: 0.0904932816
... 543 more rows

Sheet Heat Exchanger-countercurrent
D2: Shell-and-Tube Heat Exchanger Design for Supercritical Fluids
E3: Version 2.0 | K3: For Educational Use Only!
E4: Report errors to R. L. Smith; Email: smith@scf.che.tohoku.ac.jp
E5: CO2 properties v6.0IIR
E6: H2O properties v6.2
AL15: Re in an annulus: Re = 2*R*(1-K)*<v>*rho/mu
AL16: where K (=ro/R) is equal to the ratio of the outer radius of the inner tube (ro) divided by the inner radius of the outer tube (R)
C17: Tube side specifications | AL17: and R is the inner diameter of the outer tube | AR17: Linear addition of heat transfer modes
C18: Tube inside diameter di [mm]: | D18: 10.922 | E18: =D18/1000 -> 0.010922 | F18: m | AK18: Shell side properties | AQ18: 1/U = 1/hCO2 + ri/kss*ln(ro/ri) + ri/ro*1/hH2O
C19: Tube outside diameter do [mm]: | D19: 12.799 | E19: =D19/1000 -> 0.012799 | F19: m | G19: Tube | H19: Shell | K19: Tube side properties | AQ19: convection | AR19: conduction | AS19: convection | AU19: Energy balance check
C20: Tube thermal conductivity [W/(m K)]: | D20: 16.3 | G20: Tcj | H20: Thj | I20: dqj | J20: Cp | K20: m | L20: k | M20: H | N20: r | O20: <v> | P20: Re | Q20: Pr | R20: f | S20: L | T20: NuPG | U20: Tbulk | V20: rbulk | W20: Hbulk | X20: Cp,bulk | Y20: Twall | Z20: rwall | AA20: Hwall | AB20: Cp,bar | AC20: NuKP | AD20: hCO2 | AE20: hH2O | AF20: Nu | AG20: Cp | AH20: m | AI20: k | AJ20: H | AK20: r | AL20: <v> | AM20: Re | AN20: Pr | AO20: U | AP20: 1/U | AQ20: 1/hCO2 | AR20: ri/kss*ln(ro/ri) | AS20: ri/ro*1/hH2O | AU20: dqc | AV20: dqh
F21: Element | G21: [C] | H21: [C] | I21: [W] | J21: [kJ/kg K] | K21: [Pa s] | L21: [W/(m K)] | M21: [kJ/kg] | N21: [kg/m3] | O21: [m/s] | P21: [-] | Q21: [-] | R21: [-] | S21: [m] | T21: [-] | U21: [C] | V21: [kg/m3] | W21: [kJ/kg] | X21: [kJ/kg K] | Y21: [C] | Z21: [kg/m3] | AA21: [kJ/kg] | AB21: [kJ/kg K] | AC21: [-] | AD21: [W/(m2 K)] | AE21: [W/(m2 K)] | AF21: [-] | AG21: [kJ/kg K] | AH21: [Pa s] | AI21: [W/(m K)] | AJ21: [kJ/kg] | AK21: [kg/m3] | AL21: [m/s] | AM21: [-] | AN21: [-] | AO21: W/(m2 K) | AP21: (m2 K)/W | AQ21: (m2 K)/W | AR21: (m2 K)/W | AS21: (m2 K)/W | AU21: [W] | AV21: [W]
C22: P [MPa]: | D22: 8 | F22: 1 | G22: =$D$24 -> 4 | H22: =$D$36 -> 95 | I22: =AO22*$D$39*(H22-G22) -> 170.3094693 | J22: =cp_tp1(G22,$D$22*1000000)/1000 -> 2.328624526 | K22: =VMU_TP1(G22,$D$22*1000000) -> 0.0001028366274 | L22: =k_tp1(G22,$D$22*1000000) -> 0.1158963828 | M22: =h_tp1(G22,$D$22*1000000)/1000 -> 205.6362437 | N22: =rho_tp1(G22,$D$22*1000000) -> 939.741469 | O22: =($D$23/60)/N22/(PI()*($E$18)^2/4) -> 0.1892980464 | P22: =N22*O22*$E$18/K22 -> 18893.3457 | Q22: =J22*1000*K22/L22 -> 2.066224043 | R22: =fKNRe(P22) -> 0.06949675762 | S22: =$D$40/1000*F22 -> 0.01446484348 | T22: =NuPGfRePrDL(R22,P22,Q22,$E$18,S22) -> 950.2107163 | U22: =G22 -> 4 | V22: =N22 -> 939.741469 | W22: =M22 -> 205.6362437 | X22: =J22 -> 2.328624526 | Y22: =H22 -> 95 | Z22: =rho_tp1(H22,$D$22*1000000) -> 145.378435 | AA22: =h_tp1(H22,$D$22*1000000)/1000 -> 513.1376718 | AB22: =(AA22-W22)/(Y22-U22) -> 3.379136572 | AC22: =T22*(Z22/V22)^0.3*(AB22/X22)^0.4 -> 630.013585 | AD22: =AC22*L22/($D$18/1000) -> 6685.249552 | AE22: =AF22*AI22/(2*$E$32) -> 13657.50222 | AF22: =0.023*AM22^0.8*AN22^0.4 -> 151.3073458 | AG22: =cp_rt2(AK22,H22)/1000 -> 4.210400716 | AH22: =vmu_rt2(AK22,H22) -> 0.0002978744232 | AI22: =k_rt2(AK22,H22) -> 0.6791411626 | AJ22: =h_rt2(AK22,H22)/1000 -> 398.0244398 | AK22: =rho_tp2(H22,$D$33) -> 961.8409417 | AL22: =($D$34/60)/(AK22*$E$31) -> 2.394389427 | AM22: =2*($E$30/2)*(1-($E$18/$E$30))*AL22*AK22/AH22 -> 43598.03598 | AN22: =AG22*1000*AH22/AI22 -> 1.84670103 | AO22: =1/AP22 -> 3770.783688 | AP22: =SUM(AQ22:AS22) -> 0.0002651968616 | AQ22: =1/AD22 -> 0.0001495830473 | AR22: =($E$18/2/$D$20)*LN($E$19/$E$18) -> 5.313182427e-05 | AS22: =(($E$18/2)/($E$19/2))/AE22 -> 6.248199003e-05 | AU22: =$D$23/60*J22*1000*(G23-G22) -> 170.3094693 | AV22: =-$D$34/60*AG22*1000*(H23-H22) -> -170.3094693
A23: Inlet/outlet specs: | C23: CO2 mass flow rate [kg/min]: | D23: 1 | F23: 2 | G23: =I22/($D$23/60*(J22*1000))+G22 -> 8.388242091 | H23: =I22/(($D$34/60*AG22*1000))+H22 -> 95.20246623 | I23: =AO23*$D$39*(H23-G23) -> 147.750912 | J23: 2.433149172 | K23: 9.567286563e-05 | L23: 0.1107687411 | M23: 216.0735638 | N23: 913.42711 | O23: 0.1947514172 | P23: =N23*O23*$D$18/1000/K23 -> 20308.03549 | Q23: 2.101552763 | R23: =fKNRe(P23) -> 0.06892994158 | S23: 0.02892968697 | T23: 848.0115571 | U23: 8.388242091 | V23: 913.42711 | W23: 216.0735638 | X23: 2.433149172 | Y23: 95.20246623 | Z23: 145.2051642 | AA23: 513.4144174 | AB23: =(AA23-W23)/(Y23-U23) -> 3.425024604 | AC23: 560.0053869 | AD23: 5679.462708 | AE23: 13670.76837 | AF23: =0.023*AM23^0.8*AN23^0.4 -> 151.4386889 | AG23: 4.210613029 | AH23: 0.000297213291 | AI23: 0.6792112502 | AJ23: 398.8769253 | AK23: 961.699877 | AL23: 2.394740642 | AM23: 43695.01707 | AN23: 1.842505045 | AO23: 3429.047478 | AP23: 0.0002916261751 | AQ23: 0.0001760729934 | AR23: 5.313182427e-05 | AS23: 6.242135736e-05 | AU23: 147.750912 | AV23: -147.750912
B24: 1 | C24: Tc1 [C]: | D24: 4 | E24: calculated: | F24: 3 | G24: 12.03169101 | H24: =I23/(($D$34/60*AG23*1000))+H23 -> 95.37810568 | I24: 136.0406394 | J24: 2.547330228 | K24: 8.977287188e-05 | L24: 0.1065587223 | M24: 225.1372027 | N24: 889.5800857 | O24: 0.1999721296 | P24: 21642.70687 | Q24: 2.146057547 | R24: 0.06843768215 | S24: 0.04339453045 | T24: 828.4017372 | U24: 12.03169101 | V24: 889.5800857 | W24: 225.1372027 | X24: 2.547330228 | Y24: 95.37810568 | Z24: 145.055362 | AA24: 513.6542669 | AB24: 3.461661372 | AC24: 543.5322961 | AD24: 5302.884731 | AE24: 13682.26673 | AF24: 151.5525911 | AG24: 4.210797927 | AH24: 0.0002966418236 | AI24: 0.6792716253 | AJ24: 399.6164913 | AK24: 961.5773477 | AL24: 2.395045793 | AM24: 43779.19359 | AN24: 1.838879661 | AO24: 3288.637149 | AP24: 0.0003040773289 | AQ24: 0.0001885766052 | AR24: 5.313182427e-05 | AS24: 6.236889945e-05 | AU24: 136.0406394 | AV24: -136.0406394
B25: 50 | C25: Tc2 [C]: | D25: 60 | E25: =G71 -> 59.99996865 | F25: 4 | G25: 15.23600205 | H25: 95.5398174 | I25: 127.8259209 | J25: 2.679899909 | K25: 8.457042131e-05 | L25: 0.1026277585 | M25: 233.50202 | N25: 866.639851 | O25: 0.205265456 | P25: 22974.08385 | Q25: 2.208371963 | R25: 0.06798216976 | S25: 0.05785937393 | T25: 833.8032267 | U25: 15.23600205 | V25: 866.639851 | W25: 233.50202 | X25: 2.679899909 | Y25: 95.5398174 | Z25: 144.9178552 | AA25: 513.8749113 | AB25: 3.491401872 | AC25: 542.0022017 | AD25: 5092.883266 | AE25: 13692.84507 | AF25: 151.65743 | AG25: 4.210968754 | AH25: 0.0002961173605 | AI25: 0.6793268639 | AJ25: 400.2974404 | AK25: 961.4644069 | AL25: 2.395327133 | AM25: 43856.73235 | AN25: 1.83555372 | AO25: 3207.132972 | AP25: 0.0003118049699 | AQ25: 0.000196352429 | AR25: 5.313182427e-05 | AS25: 6.232071666e-05 | AU25: 127.8259209 | AV25: -127.8259209
C26: Qc [kW]: | D26: =(D23/60)*(h_tp1(D25,D22*1000000)-h_tp1(D24,D22*1000000))/1000 -> 4.208120977 | F26: 5 | G26: 18.09788328 | H26: 95.69175811 | I26: 121.2556724 | J26: 2.83813073 | K26: 7.986392455e-05 | L26: 0.09887373622 | M26: 241.3868359 | N26: 844.0949116 | O26: 0.2107478931 | P26: 24327.9799 | Q26: 2.292461751 | R26: 0.06755076465 | S26: 0.07232421742 | T26: 851.155224 | U26: 18.09788328 | V26: 844.0949116 | W26: 241.3868359 | X26: 2.83813073 | Y26: 95.69175811 | Z26: 144.7890188 | AA26: 514.0820626 | AB26: 3.514391146 | AC26: 546.310002 | AD26: 4945.5879 | AE26: 13702.77706 | AF26: 151.7559072 | AG26: 4.211129775 | AH26: 0.0002956260554 | AI26: 0.6793784606 | AJ26: 400.9372702 | AK26: 961.3581787 | AL26: 2.395591812 | AM26: 43929.61846 | AN26: 1.832439143 | AO26: 3148.537285 | AP26: 0.0003176077999 | AQ26: 0.00020220043 | AR26: 5.313182427e-05 | AS26: 6.227554561e-05 | AU26: 121.2556724 | AV26: -121.2556724
C27: Qsum [kW]: | D27: =SUM(I22:I131)/1000 -> 4.255954313 | F27: 6 | G27: 20.66131007 | H27: 95.83588355 | I27: 115.6200946 | J27: 3.029695941 | K27: 7.554831861e-05 | L27: 0.09524760865 | M27: 248.8951859 | N27: 821.6980987 | O27: 0.216492194 | P27: 25717.6862 | Q27: 2.403088513 | R27: 0.06713729 | S27: 0.0867890609 | T27: 876.0099514 | U27: 20.66131007 | V27: 821.6980987 | W27: 248.8951859 | X27: 3.029695941 | Y27: 95.83588355 | Z27: 144.6671317 | AA27: 514.2784152 | AB27: 3.53022594 | AC27: 553.0542054 | AD27: 4823.02605 | AE27: 13712.19176 | AF27: 151.8492948 | AG27: 4.211282977 | AH27: 0.0002951613313 | AI27: 0.6794271316 | AJ27: 401.5442122 | AK27: 961.2573147 | AL27: 2.395843179 | AM27: 43998.78455 | AN27: 1.829494043 | AO27: 3098.821524 | AP27: 0.000322703322 | AQ27: 0.0002073387101 | AR27: 5.313182427e-05 | AS27: 6.223278762e-05 | AU27: 115.6200946 | AV27: -115.6200946
F28: 7 | G28: 22.95104666 | H28: 95.97330551 | I28: 110.5944393 | J28: 3.263415718 | K28: 7.155836805e-05 | L28: 0.09172182178 | M28: 256.0858039 | N28: 799.3074963 | O28: 0.2225566819 | P28: 27151.65261 | Q28: 2.546010301 | R28: 0.06673816303 | S28: 0.1012539044 | T28: 906.6962281 | U28: 22.95104666 | V28: 799.3074963 | W28: 256.0858039 | X28: 3.263415718 | Y28: 95.97330551 | Z28: 144.5512047 | AA28: 514.4655055 | AB28: 3.538369063 | AC28: 560.6688774 | AD28: 4708.439008 | AE28: 13721.16275 | AF28: 151.938317 | AG28: 4.211429475 | AH28: 0.0002947194055 | AI28: 0.6794732928 | AJ28: 402.122945 | AK28: 961.1610517 | AL28: 2.39608313 | AM28: 44064.75983 | AN28: 1.8266943 | AO28: 3051.49206 | AP28: 0.0003277085374 | AQ28: 0.0002123846137 | AR28: 5.313182427e-05 | AS28: 6.21920994e-05 | AU28: 110.5944393 | AV28: -110.5944393
C29: Shell side specifications | F29: 8 | G29: 24.98439666 | H29: 96.10474958 | I29: 106.0057419 | J29: 3.551430671 | K29: 6.784835327e-05 | L29: 0.08827898471 | M29: 262.9977656 | N29: 776.8290162 | O29: 0.2289966267 | P29: 28636.33172 | Q29: 2.729513978 | R29: 0.06635100545 | S29: 0.1157187479 | T29: 942.7820688 | U29: 24.98439666 | V29: 776.8290162 | W29: 262.9977656 | X29: 3.551430671 | Y29: 96.10474958 | Z29: 144.4405851 | AA29: 514.6443395 | AB29: 3.538320096 | AC29: 568.3004044 | AD29: 4593.387907 | AE29: 13729.73819 | AF29: 152.0234467 | AG29: 4.211569985 | AH29: 0.0002942977808 | AI29: 0.6795172218 | AJ29: 402.6765217 | AK29: 961.0688935 | AL29: 2.396312894 | AM29: 44127.88906 | AN29: 1.82402397 | AO29: 3003.099371 | AP29: 0.0003329893142 | AQ29: 0.0002177042349 | AR29: 5.313182427e-05 | AS29: 6.215325494e-05 | AU29: 106.0057419 | AV29: -106.0057419
C30: Shell tube diamter Di [mm]: | D30: 16.561 | E30: =D30/1000 -> 0.016561 | F30: 9 | G30: 26.77532125 | H30: 96.23073567 | I30: 101.7375759 | J30: 3.913599743 | K30: 6.438251207e-05 | L30: 0.08490609729 | M30: 269.6621915 | N30: 754.1858549 | O30: 0.2358718651 | P30: 30177.88353 | Q30: 2.96760057 | R30: 0.06597395185 | S30: 0.1301835914 | T30: 984.6529463 | U30: 26.77532125 | V30: 754.1858549 | W30: 269.6621915 | X30: 3.913599743 | Y30: 96.23073567 | Z30: 144.3348006 | AA30: 514.8156401 | AB30: 3.529652089 | AC30: 575.3249178 | AD30: 4472.49528 | AE30: 13737.95267 | AF30: 152.1050232 | AG30: 4.211705014 | AH30: 0.0002938946486 | AI30: 0.6795591213 | AJ30: 403.2071294 | AK30: 960.9804862 | AL30: 2.396533347 | AM30: 44188.41883 | AN30: 1.82147149 | AO30: 2951.273749 | AP30: 0.0003388367482 | AQ30: 0.000223588833 | AR30: 5.313182427e-05 | AS30: 6.211609097e-05 | AU30: 101.7375759 | AV30: -101.7375759
C31: Annular cross-sectional area S [m]: | E31: =PI()/4*($E$30^2-$E$19^2) -> 8.674904927e-05 | F31: 10 | G31: 28.33507569 | H31: 96.35164524 | I31: 97.69695777 | J31: 4.383321417 | K31: 6.11306766e-05 | L31: 0.08159180467 | M31: 276.1070547 | N31: 731.3033366 | O31: 0.2432523076 | P31: 31783.19068 | Q31: 3.284097037 | R31: 0.06560532348 | S31: 0.1446484348 | T31: 1033.517114 | U31: 28.33507569 | V31: 731.3033366 | W31: 276.1070547 | X31: 4.383321417 | Y31: 96.35164524 | Z31: 144.2335001 | AA31: 514.9799396 | AB31: 3.511980778 | AC31: 581.1761373 | AD31: 4341.623318 | AE31: 13745.83167 | AF31: 152.1832958 | AG31: 4.211834929 | AH31: 0.0002935086641 | AI31: 0.6795991438 | AJ31: 403.7163727 | AK31: 960.8955717 | AL31: 2.396745129 | AM31: 44246.5297 | AN31: 1.819028253 | AO31: 2894.013364 | AP31: 0.0003455409061 | AQ31: 0.0002303285953 | AR31: 5.313182427e-05 | AS31: 6.208048651e-05 | AU31: 97.69695777 | AV31: -97.69695777
C32: Hydraulic radius [m]: | E32: =4*E31/(PI()*(E30+E19)) -> 0.003762 | F32: 11 | G32: 29.67237608 | H32: 96.46774917 | I32: 93.82055831 | J32: 5.012600945 | K32: 5.806793866e-05 | L32: 0.07832708876 | M32: 282.3567814 | N32: 708.1146393 | O32: 0.2512181141 | P32: 33459.5647 | Q32: 3.7161014 | R32: 0.06524367819 | S32: 0.1591132783 | T32: 1091.516321 | U32: 29.67237608 | V32: 708.1146393 | W32: 282.3567814 | X32: 5.012600945 | Y32: 96.46774917 | Z32: 144.1364294 | AA32: 515.1376182 | AB32: 3.484984453 | AC32: 585.4453693 | AD32: 4198.519631 | AE32: 13753.39339 | AF32: 152.2584419 | AG32: 4.211959982 | AH32: 0.0002931388515 | AI32: 0.6796374018 | AJ32: 404.2053906 | AK32: 960.8139679 | AL32: 2.396948689 | AM32: 44302.3494 | AN32: 1.816687999 | AO32: 2829.996181 | AP32: 0.0003533573673 | AQ32: 0.0002381791888 | AR32: 5.313182427e-05 | AS32: 6.20463542e-05 | AU32: 93.82055831 | AV32: -93.82055831
C33: P [MPa]: | D33: 0.2 | F33: 12 | G33: 30.79539257 | H33: 96.57924304 | I33: 90.09172992 | J33: 5.875265937 | K33: 5.517681519e-05 | L33: 0.07510893121 | M33: 288.4293622 | N33: 684.5880177 | O33: 0.2598515014 | P33: 35212.76 | Q33: 4.316110716 | R33: 0.064888173 | S33: 0.1735781218 | T33: 1161.677095 | U33: 30.79539257 | V33: 684.5880177 | W33: 288.4293622 | X33: 5.875265937 | Y33: 96.57924304 | Z33: 144.0433999 | AA33: 515.2889528 | AB33: 3.448560535 | AC33: 588.0967472 | AD33: 4044.251797 | AE33: 13760.65105 | AF33: 152.33059 | AG33: 4.212080348 | AH33: 0.0002927844866 | AI33: 0.6796739808 | AJ33: 404.675005 | AK33: 960.7355451 | AL33: 2.397144347 | AM33: 44355.96973 | AN33: 1.814446068 | AO33: 2759.305919 | AP33: 0.000362409979 | AQ33: 0.0002472645251 | AR33: 5.313182427e-05 | AS33: 6.201362962e-05 | AU33: 90.09172992 | AV33: -90.09172992
A34: Inlet/outlet specs: | C34: H2O water flow rate [kg/min]: | D34: =(D37*1000/(h_tp2(D35,D33*1000000)-h_tp2(D36,D33*1000000)))*60 -> 11.987097 | F34: 13 | G34: 31.71543667 | H34: 96.68630262 | I34: 86.53536567 | J34: 7.07188714 | K34: 5.244859422e-05 | L34: 0.07194364462 | M34: 294.3356032 | N34: 660.75609 | O34: 0.2692237376 | P34: 37044.42378 | Q34: 5.155570599 | R34: 0.06453889621 | S34: 0.1880429653 | T34: 1247.668101 | U34: 31.71543667 | V34: 660.75609 | W34: 294.3356032 | X34: 7.07188714 | Y34: 96.68630262 | Z34: 143.954242 | AA34: 515.4341921 | AB34: 3.403042051 | AC34: 589.5041371 | AD34: 3883.086993 | AE34: 13767.61656 | AF34: 152.3998556 | AG34: 4.212196183 | AH34: 0.0002924449175 | AI34: 0.6797089577 | AJ34: 405.1259547 | AK34: 960.6601868 | AL34: 2.397332389 | AM34: 44407.47315 | AN34: 1.812298266 | AO34: 2683.546928 | AP34: 0.000372641145 | AQ34: 0.0002575270659 | AR34: 5.313182427e-05 | AS34: 6.198225481e-05 | AU34: 86.53536567 | AV34: -86.53536567
B35: 50 | C35: Th1 [C]: | D35: 100 | F35: 14 | G35: 32.44962853 | H35: 96.78913319 | I35: 83.19305205 | J35: 8.739519638 | K35: 4.988180233e-05 | L35: 0.0688468415 | M35: 300.0818112 | N35: 636.7255126 | O35: 0.2793844768 | P35: 38950.63651 | Q35: 6.332069584 | R35: 0.0641968689 | S35: 0.2025078088 | T35: 1353.507349 | U35: 32.44962853 | V35: 636.7255126 | W35: 300.0818112 | X35: 8.739519638 | Y35: 96.78913319 | Z35: 143.8687639 | AA35: 515.573624 | AB35: 3.349292381 | AC35: 590.270523 | AD35: 3720.771025 | AE35: 13774.30369 | AF35: 152.466373 | AG35: 4.21230768 | AH35: 0.0002921194079 | AI35: 0.6797424173 | AJ35: 405.559103 | AK35: 960.587755 | AL35: 2.397513157 | AM35: 44456.95655 | AN35: 1.81023987 | AO35: 2605.214943 | AP35: 0.0003838454875 | AQ35: 0.0002687614995 | AR35: 5.313182427e-05 | AS35: 6.195216377e-05 | AU35: 83.19305205 | AV35: -83.19305205
B36: 1 | C36: Th2 [C]: | D36: 95 | F36: 15 | G36: 33.02077927 | H36: 96.88798946 | I36: 80.11752412 | J36: 11.0463195 | K36: 4.748075094e-05 | L36: 0.06584282012 | M36: 305.6689056 | N36: 612.6849382 | O36: 0.2903469844 | P36: 40920.32903 | Q36: 7.965751526 | R36: 0.06386402809 | S36: 0.2169726523 | T36: 1482.657633 | U36: 33.02077927 | V36: 612.6849382 | W36: 305.6689056 | X36: 11.0463195 | Y36: 96.88798946 | Z36: 143.7867347 | AA36: 515.7076022 | AB36: 3.288678119 | AC36: 591.1624908 | AD36: 3563.798347 | AE36: 13780.72937 | AF36: 152.5303084 | AG36: 4.212415087 | AH36: 0.0002918070741 | AI36: 0.6797744587 | AJ36: 405.9755214 | AK36: 960.5180761 | AL36: 2.39768708 | AM36: 44504.54076 | AN36: 1.808265235 | AO36: 2527.457085 | AP36: 0.0003956545914 | AQ36: 0.0002805994904 | AR36: 5.313182427e-05 | AS36: 6.192327667e-05 | AU36: 80.11752412 | AV36: -80.11752412
C37: Qh [kW]: | D37: =D26 -> 4.208120977 | F37: 16 | G37: 33.4559515 | H37: 96.98318872 | I37: 77.37081086 | J37: 14.1454648 | K37: 4.525467947e-05 | L37: 0.06296407964 | M37: 311.0879505 | N37: 588.91516 | O37: 0.3020659618 | P37: 42933.19439 | Q37: 10.16688371 | R37: 0.06354326212 | S37: 0.2314374957 | T37: 1636.096447 | U37: 33.4559515 | V37: 588.91516 | W37: 311.0879505 | X37: 14.1454648 | Y37: 96.98318872 | Z37: 143.7078742 | AA37: 515.8365645 | AB37: 3.223005169 | AC37: 593.0547144 | AD37: 3418.892535 | AE37: 13786.91459 | AF37: 152.5918683 | AG37: 4.212518725 | AH37: 0.0002915068446 | AI37: 0.6798051989 | AJ37: 406.3765451 | AK37: 960.4509319 | AL37: 2.3978547 | AM37: 44550.377 | AN37: 1.806367535 | AO37: 2453.869125 | AP37: 0.0004075196961 | AQ37: 0.0002924923758 | AR37: 5.313182427e-05 | AS37: 6.189549606e-05 | AU37: 77.37081086 | AV37: -77.37081086
F38: 17 | G38: 33.78413079 | H38: 97.07512196 | I38: 74.96707643 | J38: 18.17639088 | K38: 4.320969293e-05 | L38: 0.06024049549 | M38: 316.3324825 | N38: 565.7109454 | O38: 0.3144560409 | P38: 44965.09507 | Q38: 13.03767942 | R38: 0.06323731948 | S38: 0.2459023392 | T38: 1812.854267 | U38: 33.78413079 | V38: 565.7109454 | W38: 316.3324825 | X38: 18.17639088 | Y38: 97.07512196 | Z38: 143.6318438 | AA38: 515.9610469 | AB38: 3.154138698 | AC38: 596.360668 | AD38: 3289.23843 | AE38: 13792.88504 | AF38: 152.6513067 | AG38: 4.212618997 | AH38: 0.0002912174262 | AI38: 0.6798347769 | AJ38: 406.7638202 | AK38: 960.3860512 | AL38: 2.398016691 | AM38: 44594.65216 | AN38: 1.804538549 | AO38: 2386.507997 | AP38: 0.0004190222708 | AQ38: 0.0003040217428 | AR38: 5.313182427e-05 | AS38: 6.186870371e-05 | AU38: 74.96707643 | AV38: -74.96707643
C39: dAj [m2]: | D39: =PI()*(D18/1000)*(D40/1000) -> 0.0004963245799 | F39: 18 | G39: 34.03159601 | H39: 97.16419692 | I39: 72.87618885 | J39: 23.27927991 | K39: 4.134246137e-05 | L39: 0.05768895294 | M39: 321.4113727 | N39: 543.2897956 | O39: 0.3274333986 | P39: 46995.94283 | Q39: 16.68296409 | R39: 0.06294771743 | S39: 0.2603671827 | T39: 2011.322353 | U39: 34.03159601 | V39: 543.2897956 | W39: 321.4113727 | X39: 23.27927991 | Y39: 97.16419692 | Z39: 143.5582937 | AA39: 516.0816073 | AB39: 3.083513617 | AC39: 601.0508746 | AD39: 3174.692879 | AE39: 13798.66745 | AF39: 152.7088881 | AG39: 4.212716329 | AH39: 0.0002909374838 | AI39: 0.6798633345 | AJ39: 407.1390634 | AK39: 960.3231502 | AL39: 2.398173761 | AM39: 44637.56149 | AN39: 1.802769802 | AO39: 2325.766911 | AP39: 0.0004299657009 | AQ39: 0.0003149910994 | AR39: 5.313182427e-05 | AS39: 6.184277729e-05 | AU39: 72.87618885 | AV39: -72.87618885
C40: dLj [mm]: | D40: 14.46484348 | F40: 19 | G40: 34.21942705 | H40: 97.25078551 | I40: 71.2311864 | J40: 28.7591358 | K40: 3.966288468e-05 | L40: 0.05534311143 | M40: 326.2833918 | N40: 522.0476446 | O40: 0.3407566839 | P40: 48986.04745 | Q40: 20.61088106 | R40: 0.06267816163 | S40: 0.2748320262 | T40: 2210.801744 | U40: 34.21942705 | V40: 522.0476446 | W40: 326.2833918 | X40: 28.7591358 | Y40: 97.25078551 | Z40: 143.4869062 | AA40: 516.1987536 | AB40: 3.013029808 | AC40: 608.6553957 | AD40: 3084.131421 | AE40: 13804.28618 | AF40: 152.7648538 | AG40: 4.212811113 | AH40: 0.0002906658053 | AI40: 0.6798909999 | AJ40: 407.5038406 | AK40: 960.2619695 | AL40: 2.398326555 | AM40: 44679.28317 | AN40: 1.801053603 | AO40: 2276.919765 | AP40: 0.000439189828 | AQ40: 0.0003242403982 | AR40: 5.313182427e-05 | AS40: 6.181760555e-05 | AU40: 71.2311864 | AV40: -71.2311864
F41: 20 | G41: 34.36803622 | H41: 97.33541766 | I41: 70.1851511 | J41: 32.83399636 | K41: 3.818292837e-05 | L41: 0.05323853399 | M41: 330.8763398 | N41: 502.4370199 | O41: 0.3540567617 | P41: 50884.72869 | Q41: 23.54869748 | R41: 0.0624329775 | S41: 0.2892968697 | T41: 2373.189329 | U41: 34.36803622 | V41: 502.4370199 | W41: 330.8763398 | X41: 32.83399636 | Y41: 97.33541766 | Z41: 143.4172356 | AA41: 516.3132068 | AB41: 2.944967104 | AC41: 620.9991171 | AD41: 3027.017268 | AE41: 13809.77579 | AF41: 152.8195469 | AG41: 4.212903916 | AH41: 0.0002904006928 | AI41: 0.6799179499 | AJ41: 407.8603839 | AK41: 960.2021375 | AL41: 2.398475999 | AM41: 44720.07177 | AN41: 1.799379199 | AO41: 2245.762483 | AP41: 0.0004452830642 | AQ41: 0.0003303582079 | AR41: 5.313182427e-05 | AS41: 6.179303203e-05 | AU41: 70.1851511 | AV41: -70.1851511
C42: Total Area [m2]: | D42: =(MAX(F22:F2000)-1)*D39 -> 0.02431990441 | F42: 21 | G42: 34.49629076 | H42: 97.41880516 | I42: 69.62274796 | J42: 34.76260464 | K42: 3.687276219e-05 | L42: 0.05134817197 | M42: 335.2303297 | N42: 484.3424673 | O42: 0.3672839699 | P42: 52692.76928 | Q42: 24.9627826 | R42: 0.06220949807 | S42: 0.3037617132 | T42: 2487.766707 | U42: 34.49629076 | V42: 484.3424673 | W42: 335.2303297 | X42: 34.76260464 | Y42: 97.41880516 | Z42: 143.34869 | AA42: 516.4259321 | AB42: 2.879662458 | AC42: 637.490497 | AD42: 2997.06754 | AE42: 13815.18258 | AF42: 152.8734279 | AG42: 4.21299551 | AH42: 0.0002901398917 | AI42: 0.6799444163 | AJ42: 408.2116912 | AK42: 960.1431529 | AL42: 2.398623345 | AM42: 44760.26977 | AN42: 1.797732332 | AO42: 2229.355398 | AP42: 0.0004485601537 | AQ42: 0.000333659481 | AR42: 5.313182427e-05 | AS42: 6.176884837e-05 | AU42: 69.62274796 | AV42: -69.62274796
C43: Total Length [m]: | D43: =(MAX(F22:F122))*D40/1000 -> 0.7232421742 | F43: 22 | G43: 34.61645911 | H43: 97.50152266 | I43: 69.33765312 | J43: 35.11508829 | K43: 3.568941311e-05 | L43: 0.04962063097 | M43: 339.4392854 | N43: 467.3820943 | O43: 0.3806119798 | P43: 54439.89637 | Q43: 25.25636752 | R43: 0.06200212072 | S43: 0.3182265566 | T43: 2568.2328 | U43: 34.61645911 | V43: 467.3820943 | W43: 339.4392854 | X43: 35.11508829 | Y43: 97.50152266 | Z43: 143.2807933 | AA43: 516.5377081 | AB43: 2.816223959 | AC43: 656.5359775 | AD43: 2982.762265 | AE43: 13820.54387 | AF43: 152.9268684 | AG43: 4.213086519 | AH43: 0.0002898815897 | AI43: 0.6799705845 | AJ43: 408.5601834 | AK43: 960.0846103 | AL43: 2.398769604 | AM43: 44800.15387 | AN43: 1.796101546 | AO43: 2221.548762 | AP43: 0.0004501364171 | AQ43: 0.000335259706 | AR43: 5.313182427e-05 | AS43: 6.174488688e-05 | AU43: 69.33765312 | AV43: -69.33765312
F44: 23 | G44: 34.73493408 | H44: 97.58389966 | I44: 69.11795089 | J44: 35.03296824 | K44: 3.459253324e-05 | L44: 0.04800382776 | M44: 343.6096508 | N44: 451.1204212 | O44: 0.3943320139 | P44: 56166.10779 | Q44: 25.24546843 | R44: 0.06180491952 | S44: 0.3326914001 | T44: 2639.027873 | U44: 34.73493408 | V44: 451.1204212 | W44: 343.6096508 | X44: 35.03296824 | Y44: 97.58389966 | Z44: 143.2132729 | AA44: 516.6489808 | AB44: 2.753256611 | AC44: 676.237288 | AD44: 2972.164283 | AE44: 13825.88106 | AF44: 152.9800813 | AG44: 4.213177306 | AH44: 0.0002896247497 | AI44: 0.6799965605 | AJ44: 408.9072486 | AK44: 960.0262771 | AL44: 2.398915359 | AM44: 44839.88277 | AN44: 1.794480286 | AO44: 2215.781523 | AP44: 0.0004513080327 | AQ44: 0.0003364551568 | AR44: 5.313182427e-05 | AS44: 6.172105155e-05 | AU44: 69.11795089 | AV44: -69.11795089
F45: 24 | G45: 34.85331049 | H45: 97.66601388 | I45: 69.17972087 | J45: 33.26618562 | K45: 3.359275649e-05 | L45: 0.04651856736 | M45: 347.6679388 | N45: 435.8312377 | O45: 0.4081653833 | P45: 57837.70533 | Q45: 24.02272761 | R45: 0.06162076125 | S45: 0.3471562436 | T45: 2669.362214 | U45: 34.85331049 | V45: 435.8312377 | W45: 347.6679388 | X45: 33.26618562 | Y45: 97.66601388 | Z45: 143.1460639 | AA45: 516.7598559 | AB45: 2.692001904 | AC45: 699.1570927 | AD45: 2977.823321 | AE45: 13831.19922 | AF45: 153.0331171 | AG45: 4.213267953 | AH45: 0.0002893691242 | AI45: 0.6800223697 | AJ45: 409.253214 | AK45: 959.9680986 | AL45: 2.399060744 | AM45: 44879.49383 | AN45: 1.792866988 | AO45: 2219.042073 | AP45: 0.0004506449032 | AQ45: 0.0003358157594 | AR45: 5.313182427e-05 | AS45: 6.169731954e-05 | AU45: 69.17972087 | AV45: -69.17972087
D46: Delta T [C]: | E46: =D25-E25 -> 3.135348646e-05 | F46: 25 | G46: 34.97808534 | H46: 97.74819971 | I46: 69.50809798 | J46: 30.18206278 | K46: 3.267664928e-05 | L46: 0.04514912046 | M46: 351.6335635 | N46: 421.41683 | O46: 0.4221265302 | P46: 59459.2161 | Q46: 21.84425012 | R46: 0.06144811465 | S46: 0.3616210871 | T46: 2661.812292 | U46: 34.97808534 | V46: 421.41683 | W46: 351.6335635 | X46: 30.18206278 | Y46: 97.74819971 | Z46: 143.0788919 | AA46: 516.8707851 | AB46: 2.632418679 | AC46: 725.5693892 | AD46: 2999.342589 | AE46: 13836.52 | AF46: 153.0861916 | AG46: 4.213358829 | AH46: 0.00028911367 | AI46: 0.6800481178 | AJ46: 409.5994887 | AK46: 959.9098381 | AL46: 2.399206352 | AM46: 44919.14832 | AN46: 1.791255063 | AO46: 2231.088004 | AP46: 0.0004482118134 | AQ46: 0.000333406395 | AR46: 5.313182427e-05 | AS46: 6.167359408e-05 | AU46: 69.50809798 | AV46: -69.50809798
F47: 26 | G47: 35.11626297 | H47: 97.83077387 | I47: 70.0350145 | J47: 26.53471342 | K47: 3.182753371e-05 | L47: 0.04387357946 | M47: 355.5493436 | N47: 407.6977047 | O47: 0.4363311889 | P47: 61045.50759 | Q47: 19.24927248 | R47: 0.06128458912 | S47: 0.3760859306 | T47: 2629.020706 | U47: 35.11626297 | V47: 407.6977047 | W47: 355.5493436 | X47: 26.53471342 | Y47: 97.83077387 | Z47: 143.0114986 | AA47: 516.9821957 | AB47: 2.574090903 | AC47: 755.1402256 | AD47: 3033.39175 | AE47: 13841.86389 | AF47: 153.1395094 | AG47: 4.213450286 | AH47: 0.0002888574051 | AI47: 0.6800739032 | AJ47: 409.9474071 | AK47: 959.8512706 | AL47: 2.399352745 | AM47: 44958.99913 | AN47: 1.789638318 | AO47: 2249.994205 | AP47: 0.0004444455891 | AQ47: 0.0003296639809 | AR47: 5.313182427e-05 | AS47: 6.164978392e-05 | AU47: 70.0350145 | AV47: -70.0350145
F48: 27 | G48: 35.27462537 | H48: 97.9139722 | I48: 70.69077154 | J48: 22.9193672 | K48: 3.103195587e-05 | L48: 0.04267385099 | M48: 359.4550416 | N48: 394.5171845 | O48: 0.4509086834 | P48: 62610.55406 | Q48: 16.66671217 | R48: 0.06112816395 | S48: 0.3905507741 | T48: 2583.63652 | U48: 35.27462537 | V48: 394.5171845 | W48: 359.4550416 | X48: 22.9193672 | Y48: 97.9139722 | Z48: 142.9436931 | AA48: 517.0944051 | AB48: 2.516618891 | AC48: 787.4211371 | AD48: 3076.569518 | AE48: 13847.24612 | AF48: 153.1932227 | AG48: 4.213542589 | AH48: 0.0002885996041 | AI48: 0.6800997981 | AJ48: 410.2979629 | AK48: 959.7922285 | AL48: 2.399500342 | AM48: 44999.16021 | AN48: 1.788012181 | AO48: 2273.786678 | AP48: 0.0004397949947 | AQ48: 0.0003250373489 | AR48: 5.313182427e-05 | AS48: 6.162582151e-05 | AU48: 70.69077154 | AV48: -70.69077154
F49: 28 | G49: 35.45968485 | H49: 97.99794769 | I49: 71.42527969 | J49: 19.6348123 | K49: 3.028091886e-05 | L49: 0.04153788145 | M49: 363.3781811 | N49: 381.7710524 | O49: 0.465963103 | P49: 64163.44101 | Q49: 14.31368518 | R49: 0.06097751142 | S49: 0.4050156175 | T49: 2534.176545 | U49: 35.45968485 | V49: 381.7710524 | W49: 363.3781811 | X49: 19.6348123 | Y49: 97.99794769 | Z49: 142.8753529 | AA49: 517.2076189 | AB49: 2.459765123 | AC49: 822.1099745 | AD49: 3126.598302 | AE49: 13852.67654 | AF49: 153.2474299 | AG49: 4.21363591 | AH49: 0.0002883398023 | AI49: 0.6801258482 | AJ49: 410.6518011 | AK49: 959.7326023 | AL49: 2.399649418 | AM49: 45039.70565 | AN49: 1.786373726 | AO49: 2301.125752 | AP49: 0.0004345699052 | AQ49: 0.0003198364175 | AR49: 5.313182427e-05 | AS49: 6.160166344e-05 | AU49: 71.42527969 | AV49: -71.42527969
F50: 29 | G50: 35.67794601 | H50: 98.08279385 | I50: 72.20972398 | J50: 16.77005814 | K50: 2.956896539e-05 | L50: 0.0404585312 | M50: 367.3346059 | N50: 369.4010584 | O50: 0.4815666338 | P50: 65708.3508 | Q50: 12.25633393 | R50: 0.06083189952 | S50: 0.419480461 | T50: 2485.184866 | U50: 35.67794601 | V50: 369.4010584 | W50: 367.3346059 | X50: 16.77005814 | Y50: 98.08279385 | Z50: 142.8064046 | AA50: 517.3219618 | AB50: 2.4034568 | AC50: 859.1208638 | AD50: 3182.454521 | AE50: 13858.16113 | AF50: 153.3021914 | AG50: 4.213730359 | AH50: 0.0002880777215 | AI50: 0.6801520799 | AJ50: 411.009316 | AK50: 959.6723247 | AL50: 2.399800142 | AM50: 45080.68084 | AN50: 1.784721207 | AO50: 2331.371981 | AP50: 0.00042893198 | AQ50: 0.0003142228722 | AR50: 5.313182427e-05 | AS50: 6.15772836e-05 | AU50: 72.20972398 | AV50: -72.20972398
F51: 30 | G51: 35.93629833 | H51: 98.16856992 | I51: 73.02824726 | J51: 14.31739674 | K51: 2.8892814e-05 | L51: 0.03943166066 | M51: 371.3329235 | N51: 357.3774854 | O51: 0.4977684144 | P51: 67246.06162 | Q51: 10.49080546 | R51: 0.06069097546 | S51: 0.4339453045 | T51: 2438.898785 | U51: 35.93629833 | V51: 357.3774854 | W51: 371.3329235 | X51: 14.31739674 | Y51: 98.16856992 | Z51: 142.7368029 | AA51: 517.4375124 | AB51: 2.347730288 | AC51: 898.5247978 | AD51: 3243.941121 | AE51: 13863.70365 | AF51: 153.357545 | AG51: 4.213826007 | AH51: 0.0002878131912 | AI51: 0.6801785088 | AJ51: 411.3707573 | AK51: 959.6113525 | AL51: 2.399952622 | AM51: 45122.1147 | AN51: 1.783053558 | AO51: 2364.337333 | AP51: 0.0004229514908 | AQ51: 0.0003082670007 | AR51: 5.313182427e-05 | AS51: 6.155266583e-05 | AU51: 73.02824726 | AV51: -73.02824726
F52: 31 | G52: 36.24233824 | H52: 98.25531633 | I52: 73.86864385 | J52: 12.23835022 | K52: 2.8250363e-05 | L52: 0.03845470245 | M52: 375.3785589 | N52: 345.6850305 | O52: 0.5146049396 | P52: 68775.32691 | Q52: 8.990781733 | R52: 0.06055459467 | S52: 0.448410148 | T52: 2396.6017 | U52: 36.24233824 | V52: 345.6850305 | W52: 375.3785589 | X52: 12.23835022 | Y52: 98.25531633 | Z52: 142.6665181 | AA52: 517.5543237 | AB52: 2.292677584 | AC52: 940.45139 | AD52: 3311.186447 | AE52: 13869.30664 | AF52: 153.4135165 | AG52: 4.213922905 | AH52: 0.0002875460997 | AI52: 0.6802051446 | AJ52: 411.7362958 | AK52: 959.5496558 | AL52: 2.400106932 | AM52: 45164.02704 | AN52: 1.781370084 | AO52: 2400.002831 | AP52: 0.0004166661752 | AQ52: 0.0003020065514 | AR52: 5.313182427e-05 | AS52: 6.152779946e-05 | AU52: 73.86864385 | AV52: -73.86864385
F53: 32 | G53: 36.60448825 | H53: 98.34305899 | I53: 74.7169137 | J53: 10.48842921 | K53: 2.764019958e-05 | L53: 0.0375259653 | M53: 379.4757251 | N53: 334.3158533 | O53: 0.5321052605 | P53: 70293.55721 | Q53: 7.725378265 | R53: 0.06042273605 | S53: 0.4628749915 | T53: 2359.215506 | U53: 36.60448825 | V53: 334.3158533 | W53: 379.4757251 | X53: 10.48842921 | Y53: 98.34305899 | Z53: 142.5955326 | AA53: 517.6724293 | AB53: 2.238417614 | AC53: 985.0189003 | AD53: 3384.34216 | AE53: 13874.97171 | AF53: 153.4701225 | AG53: 4.214021087 | AH53: 0.0002872763813 | AI53: 0.680231992 | AJ53: 412.1060409 | AK53: 959.4872152 | AL53: 2.400263124 | AM53: 45206.4307 | AN53: 1.779670381 | AO53: 2438.352949 | AP53: 0.0004101129004 | AQ53: 0.0002954783981 | AR53: 5.313182427e-05 | AS53: 6.150267803e-05 | AU53: 74.7169137 | AV53: -74.7169137
F54: 33 | G54: 37.03191305 | H54: 98.43180717 | I54: =AO54*$D$39*(H54-G54) -> 75.55554039 | J54: =cp_tp1(G54,$D$22*1000000)/1000 -> 9.023692617 | K54: =VMU_TP1(G54,$D$22*1000000) -> 2.706141108e-05 | L54: =k_tp1(G54,$D$22*1000000) -> 0.03664438212 | M54: =h_tp1(G54,$D$22*1000000)/1000 -> 383.627767 | N54: =rho_tp1(G54,$D$22*1000000) -> 323.2673698 | O54: =($D$23/60)/N54/(PI()*($E$18)^2/4) -> 0.5502913094 | P54: 71796.99334 | Q54: =J54*1000*K54/L54 -> 6.663882463 | R54: =fKNRe(P54) -> 0.06029547262 | S54: =$D$40/1000*F54 -> 0.477339835 | T54: =NuPGfRePrDL(R54,P54,Q54,$E$18,S54) -> 2327.426584 | U54: =G54 -> 37.03191305 | V54: =N54 -> 323.2673698 | W54: =M54 -> 383.627767 | X54: =J54 -> 9.023692617 | Y54: =H54 -> 98.43180717 | Z54: =rho_tp1(H54,$D$22*1000000) -> 142.5238423 | AA54: =h_tp1(H54,$D$22*1000000)/1000 -> 517.79184 | AB54: =(AA54-W54)/(Y54-U54) -> 2.185086391 | AC54: =T54*(Z54/V54)^0.3*(AB54/X54)^0.4 -> 1032.303533 | AD54: =AC54*L54/($D$18/1000) -> 3463.479687 | AE54: =AF54*AI54/(2*$E$32) -> 13880.69937 | AF54: =0.023*AM54^0.8*AN54^0.4 -> 153.5273686 | AG54: =cp_rt2(AK54,H54)/1000 -> 4.21412057 | AH54: =vmu_rt2(AK54,H54) -> 0.0002870040214 | AI54: =k_rt2(AK54,H54) -> 0.6802590508 | AJ54: =h_rt2(AK54,H54)/1000 -> 412.480032 | AK54: =rho_tp2(H54,$D$33) -> 959.4240227 | AL54: =($D$34/60)/(AK54*$E$31) -> 2.400421218 | AM54: =2*($E$30/2)*(1-($E$18/$E$30))*AL54*AK54/AH54 -> 45249.33051 | AN54: =AG54*1000*AH54/AI54 -> 1.777954367 | AO54: =1/AP54 -> 2479.321864 | AP54: =SUM(AQ54:AS54) -> 0.0004033360954 | AQ54: =1/AD54 -> 0.0002887269713 | AR54: =($E$18/2/$D$20)*LN($E$19/$E$18) -> 5.313182427e-05 | AS54: =(($E$18/2)/($E$19/2))/AE54 -> 6.147729988e-05 | AU54: =$D$23/60*J54*1000*(G55-G54) -> 75.55554039 | AV54: =-$D$34/60*AG54*1000*(H55-H54) -> -75.55554039
F55: 34 | G55: =I54/($D$23/60*(J54*1000))+G54 -> 37.53429413 | H55: 98.52154934 | I55: 76.36357609 | J55: 7.802560415 | K55: 2.651349412e-05 | L55: 0.03580940006 | M55: 387.8368697 | N55: 312.5416403 | O55: 0.5691760753 | P55: =N55*O55*$D$18/1000/K55 -> 73280.72044 | Q55: 5.777062429 | R55: 0.06017295971 | S55: 0.4918046784 | T55: 2301.676075 | U55: 37.53429413 | V55: 312.5416403 | W55: 387.8368697 | X55: 7.802560415 | Y55: 98.52154934 | Z55: 142.4514597 | AA55: 517.9125389 | AB55: 2.132833635 | AC55: 1082.33037 | AD55: 3548.580957 | AE55: 13886.4888 | AF55: 153.5852472 | AG55: 4.214221347 | AH55: 0.0002867290698 | AI55: 0.6802863144 | AJ55: 412.8582209 | AK55: 959.3600854 | AL55: 2.400581196 | AM55: 45292.72121 | AN55: 1.776222366 | AO55: 2522.791659 | AP55: 0.0003963862796 | AQ55: 0.000281802786 | AR55: 5.313182427e-05 | AS55: 6.145166931e-05 | AU55: 76.36357609 | AV55: -76.36357609
F56: 35 | G56: 38.1215135 | H56: 98.6122491 | I56: 77.11723965 | J56: 6.786890659 | K56: 2.599627125e-05 | L56: 0.03502087789 | M56: 392.1036994 | N56: 302.1448228 | O56: 0.5887614507 | P56: 74738.71666 | Q56: 5.037961956 | R56: 0.06005542244 | S56: 0.5062695219 | T56: 2282.156004 | U56: 38.1215135 | V56: 302.1448228 | W56: 392.1036994 | X56: 6.786890659 | Y56: 98.6122491 | Z56: 142.3784176 | AA56: 518.0344756 | AB56: 2.081819223 | AC56: 1135.070652 | AD56: 3639.550512 | AE56: 13892.33758 | AF56: 153.6437344 | AG56: 4.214323384 | AH56: 0.000286451652 | AI56: 0.6803137685 | AJ56: 413.2404544 | AK56: 959.295428 | AL56: 2.400742997 | AM56: 45336.58554 | AN56: 1.774475178 | AO56: 2568.60206 | AP56: 0.0003893168255 | AQ56: 0.0002747592036 | AR56: 5.313182427e-05 | AS56: 6.142579769e-05 | AU56: 77.11723965 | AV56: -77.11723965
F57: 36 | G57: 38.80327406 | H57: 98.7038418 | I57: 77.79057768 | J57: 5.942755815 | K57: 2.550979668e-05 | L57: 0.0342789643 | M57: 396.4271464 | N57: 292.0863481 | O57: 0.6090364214 | P57: 76163.99203 | Q57: 4.422493375 | R57: 0.05994313844 | S57: 0.5207343654 | T57: 2268.833437 | U57: 38.80327406 | V57: 292.0863481 | W57: 396.4271464 | X57: 5.942755815 | Y57: 98.7038418 | Z57: 142.3047711 | AA57: 518.1575617 | AB57: 2.032208039 | AC57: 1190.439109 | AD57: 3736.22228 | AE57: 13898.24146 | AF57: 153.7027884 | AG57: 4.214426613 | AH57: 0.000286171979 | AI57: 0.6803413907 | AJ57: 413.6264603 | AK57: 959.2300953 | AL57: 2.40090651 | AM57: 45380.89253 | AN57: 1.772714141 | AO57: 2616.557447 | AP57: 0.0003821815573 | AQ57: 0.0002676500286 | AR57: 5.313182427e-05 | AS57: 6.139970441e-05 | AU57: 77.79057768 | AV57: -77.79057768
F58: 37 | G58: 39.58867309 | H58: 98.79623196 | I58: 78.3561445 | J58: 5.240790536 | K58: 2.505425647e-05 | L58: 0.03358396555 | M58: 400.8041746 | N58: 282.3778908 | O58: 0.6299757524 | P58: 77548.81702 | Q58: 3.909726206 | R58: 0.05983641682 | S58: 0.5351992089 | T58: 2261.489794 | U58: 39.58867309 | V58: 282.3778908 | W58: 400.8041746 | X58: 5.240790536 | Y58: 98.79623196 | Z58: 142.2306 | AA58: 518.2816677 | AB58: 1.984163768 | AC58: 1248.290378 | AD58: 3838.35754 | AE58: 13904.19423 | AF58: 153.7623472 | AG58: 4.214530933 | AH58: 0.0002858903544 | AI58: 0.6803691494 | AJ58: 414.0158367 | AK58: 959.1641546 | AL58: 2.401071568 | AM58: 45425.59629 | AN58: 1.770941177 | AO58: 2666.429585 | AP58: 0.0003750333426 | AQ58: 0.0002605281008 | AR58: 5.313182427e-05 | AS58: 6.137341753e-05 | AU58: 78.3561445 | AV58: -78.3561445
F59: 38 | G59: 40.48574551 | H59: 98.88929153 | I59: 78.7857686 | J59: 4.656122833 | K59: 2.462987056e-05 | L59: 0.03293621399 | M59: 405.2297475 | N59: 273.0322648 | O59: 0.651539203 | P59: 78885.02483 | Q59: 3.481872651 | R59: 0.05973557505 | S59: 0.5496640524 | T59: 2259.76214 | U59: 40.48574551 | V59: 273.0322648 | W59: 405.2297475 | X59: 4.656122833 | Y59: 98.88929153 | Z59: 142.1560093 | AA59: 518.4066204 | AB59: 1.937842488 | AC59: 1308.415624 | AD59: 3945.637886 | AE59: 13910.18756 | AF59: 153.8223282 | AG59: 4.214636204 | AH59: 0.0002856071791 | AI59: 0.6803970037 | AJ59: 414.4080441 | AK59: 959.0976962 | AL59: 2.401237945 | AM59: 45470.6351 | AN59: 1.769158815 | AO59: 2717.958217 | AP59: 0.0003679232425 | AQ59: 0.000253444444 | AR59: 5.313182427e-05 | AS59: 6.134697422e-05 | AU59: 78.7857686 | AV59: -78.7857686
F60: 39 | G60: 41.50099925 | H60: 98.98285901 | I60: 79.0514629 | J60: 4.168016705 | K60: 2.423680258e-05 | L60: 0.03233594624 | M60: 409.6968118 | N60: 264.0623452 | O60: 0.6736713032 | P60: 80164.36759 | Q60: 3.124058819 | R60: 0.05964091546 | S60: 0.5641288959 | T60: 2263.179985 | U60: 41.50099925 | V60: 264.0623452 | W60: 409.6968118 | X60: 4.168016705 | Y60: 98.98285901 | Z60: 142.0811306 | AA60: 518.5322023 | AB60: 1.893386731 | AC60: 1370.540973 | AD60: 4057.657866 | AE60: 13916.21102 | AF60: 153.8826271 | AG60: 4.214742246 | AH60: 0.0002853229527 | AI60: 0.6804249036 | AJ60: 414.8024019 | AK60: 959.0308347 | AL60: 2.401405354 | AM60: 45515.93099 | AN60: 1.767370206 | AO60: 2770.85192 | AP60: 0.0003608998347 | AQ60: 0.0002464475895 | AR60: 5.313182427e-05 | AS60: 6.132042095e-05 | AU60: 79.0514629 | AV60: -79.0514629
F61: 40 | G61: 42.6389716 | H61: 99.07673967 | I61: 79.12648667 | J61: 3.759369038 | K61: 2.387508168e-05 | L61: 0.03178319689 | M61: 414.1963337 | N61: 255.4800812 | O61: 0.6963017366 | P61: 81378.90277 | Q61: 2.823984106 | R61: 0.05955270278 | S61: 0.5785937393 | T61: 2271.196253 | U61: 42.6389716 | V61: 255.4800812 | W61: 414.1963337 | X61: 3.759369038 | Y61: 99.07673967 | Z61: 142.0061208 | AA61: 518.6581513 | AB61: 1.850920425 | AC61: 1434.329014 | AD61: 4173.920662 | AE61: 13922.25203 | AF61: 153.9431183 | AG61: 4.214848842 | AH61: 0.0002850382719 | AI61: 0.6804527896 | AJ61: 415.1980897 | AK61: 958.9637087 | AL61: 2.401573449 | AM61: 45561.38983 | AN61: 1.76557911 | AO61: 2824.790661 | AP61: 0.0003540085337 | AQ61: 0.000239582896 | AR61: 5.313182427e-05 | AS61: 6.129381337e-05 | AU61: 79.12648667 | AV61: -79.12648667
F62: 41 | G62: 43.90184023 | H62: 99.17070704 | I62: 78.98651295 | J62: 3.416168607 | K62: 2.354453964e-05 | L62: 0.03127771207 | M62: 418.7173957 | N62: 247.2956498 | O62: 0.7193463547 | P62: 82521.38205 | Q62: 2.571547337 | R62: 0.05947114419 | S62: 0.5930585828 | T62: 2283.213362 | U62: 43.90184023 | V62: 247.2956498 | W62: 418.7173957 | X62: 3.416168607 | Y62: 99.17070704 | Z62: 141.9311613 | AA62: 518.7841635 | AB62: 1.810544953 | AC62: 1499.384052 | AD62: 4293.838368 | AE62: 13928.29601 | AF62: 154.0036558 | AG62: 4.214955737 | AH62: 0.0002847538256 | AI62: 0.6804805939 | AJ62: 415.594153 | AK62: 958.89648 | AL62: 2.401741824 | AM62: 45606.90202 | AN62: 1.763789859 | AO62: 2879.430479 | AP62: 0.0003472908991 | AQ62: 0.000232891859 | AR62: 5.313182427e-05 | AS62: 6.126721582e-05 | AU62: 78.98651295 | AV62: -78.98651295
F63: 42 | G63: 45.28912268 | H63: 99.26450582 | I63: 78.61081543 | J63: 3.126981682 | K63: 2.324476559e-05 | L63: 0.03081888644 | M63: 423.2473594 | N63: 239.516784 | O63: 0.7427088043 | P63: 83585.61171 | Q63: 2.358487427 | R63: 0.05939637307 | S63: 0.6075234263 | T63: 2298.605753 | U63: 45.28912268 | V63: 239.516784 | W63: 423.2473594 | X63: 3.126981682 | Y63: 99.26450582 | Z63: 141.8564553 | AA63: 518.9098968 | AB63: 1.772336422 | AC63: 1565.261002 | AD63: 4416.736959 | AE63: 13934.32654 | AF63: 154.0640752 | AG63: 4.21506264 | AH63: 0.0002844703848 | AI63: 0.6805082413 | AJ63: 415.9895157 | AK63: 958.8293312 | AL63: 2.401910023 | AM63: 45652.34385 | AN63: 1.762007303 | AO63: 2934.409931 | AP63: 0.0003407840157 | AQ63: 0.0002264114909 | AR63: 5.313182427e-05 | AS63: 6.124070046e-05 | AU63: 78.61081543 | AV63: -78.61081543
F64: 43 | G64: 46.79749382 | H64: 99.35785607 | I64: 77.96130891 | J64: 2.882494535 | K64: 2.297508003e-05 | L64: 0.03039245485 | M64: 427.7720999 | N64: 232.1482995 | O64: 0.7662826935 | P64: 84566.75443 | Q64: 2.179012619 | R64: 0.05932843756 | S64: 0.6219882698 | T64: 2316.755156 | U64: 46.79749382 | V64: 232.1482995 | W64: 427.7720999 | X64: 2.882494535 | Y64: 99.35785607 | Z64: 141.7822241 | AA64: 519.0349766 | AB64: 1.736344135 | AC64: 1631.488235 | AD64: 4539.91325 | AE64: 13940.32565 | AF64: 154.1241963 | AG64: 4.21516923 | AH64: 0.0002841887893 | AI64: 0.6805356504 | AJ64: 416.3829978 | AK64: 958.7624632 | AL64: 2.402077542 | AM64: 45697.5796 | AN64: 1.760236719 | AO64: 2988.511894 | AP64: 0.0003346146964 | AQ64: 0.0002202685261 | AR64: 5.313182427e-05 | AS64: 6.121434602e-05 | AU64: 77.96130891 | AV64: -77.96130891
F65: 44 | G65: 48.42028217 | H65: 99.45043269 | I65: 77.24032947 | J65: 2.675173874 | K65: 2.273459003e-05 | L65: 0.03012363106 | M65: 432.2750784 | N65: 225.193675 | O65: 0.7899476939 | P65: 85461.3146 | Q65: 2.018979092 | R65: 0.05926731041 | S65: 0.6364531133 | T65: 2337.045849 | U65: 48.42028217 | V65: 225.193675 | W65: 432.2750784 | X65: 2.675173874 | Y65: 99.45043269 | Z65: 141.7087237 | AA65: 519.1589685 | AB65: 1.702599133 | AC65: 1697.553654 | AD65: 4681.970332 | AE65: 13946.27249 | AF65: 154.1838098 | AG65: 4.215275132 | AH65: 0.0002839100092 | AI65: 0.6805627279 | AJ65: 416.7732288 | AK65: 958.6961096 | AL65: 2.402243795 | AM65: 45742.45149 | AN65: 1.758484196 | AO65: 3049.660429 | AP65: 0.0003279053597 | AQ65: 0.0002135852919 | AR65: 5.313182427e-05 | AS65: 6.118824355e-05 | AU65: 77.24032947 | AV65: -77.24032947
F66: 45 | G66: 50.15266294 | H66: 99.54215087 | I66: 76.24144465 | J66: 2.498421283 | K66: 2.252157783e-05 | L66: 0.02988928095 | M66: 436.7508229 | N66: 218.6357763 | O66: 0.8136418807 | P66: 86269.61955 | Q66: 1.882560824 | R66: 0.0592127291 | S66: 0.6509179568 | T66: 2359.275892 | U66: 50.15266294 | V66: 218.6357763 | W66: 436.7508229 | X66: 2.498421283 | Y66: 99.54215087 | Z66: 141.636018 | AA66: 519.2817603 | AB66: 1.671022334 | AC66: 1763.360496 | AD66: 4825.634249 | AE66: 13952.16169 | AF66: 154.2428615 | AG66: 4.215380245 | AH66: 0.0002836342861 | AI66: 0.680589452 | AJ66: 417.159851 | AK66: 958.6303324 | AL66: 2.402408627 | AM66: 45786.91809 | AN66: 1.756751243 | AO66: 3110.217852 | AP66: 0.0003215208862 | AQ66: 0.0002072266459 | AR66: 5.313182427e-05 | AS66: 6.116241601e-05 | AU66: 76.24144465 | AV66: -76.24144465
F67: 46 | G67: 51.98361383 | H67: 99.63268068 | I67: 74.96329859 | J67: 2.347337306 | K67: 2.233475658e-05 | L67: 0.02968786587 | M67: 441.1822477 | N67: 212.472558 | O67: 0.8372432935 | P67: 86991.23018 | Q67: 1.765947326 | R67: 0.05916451394 | S67: 0.6653828002 | T67: 2382.865649 | U67: 51.98361383 | V67: 212.472558 | W67: 441.1822477 | X67: 2.347337306 | Y67: 99.63268068 | Z67: 141.5643645 | AA67: 519.4029122 | AB67: 1.641599085 | AC67: 1828.401319 | AD67: 4969.907812 | AE67: 13957.97215 | AF67: 154.3011392 | AG67: 4.215484183 | AH67: 0.000283362595 | AI67: 0.6806157301 | AJ67: 417.5414733 | AK67: 958.5653693 | AL67: 2.402571441 | AM67: 45830.81908 | AN67: 1.755043976 | AO67: 3169.775504 | AP67: 0.0003154797552 | AQ67: 0.0002012109757 | AR67: 5.313182427e-05 | AS67: 6.113695516e-05 | AU67: 74.96329859 | AV67: -74.96329859
F68: 47 | G68: 53.89974148 | H68: 99.72169061 | I68: 73.4117417 | J68: 2.21787815 | K68: 2.217261633e-05 | L68: 0.029517527 | M68: 445.5520086 | N68: 206.6989169 | O68: 0.8606296872 | P68: 87627.36529 | Q68: 1.665998689 | R68: 0.05912240323 | S68: 0.6798476437 | T68: 2407.27078 | U68: 53.89974148 | V68: 206.6989169 | W68: 445.5520086 | X68: 2.21787815 | Y68: 99.72169061 | Z68: 141.4940204 | AA68: 519.5219829 | AB68: 1.614291309 | AC68: 1892.180666 | AD68: 5113.760657 | AE68: 13963.6827 | AF68: 154.3584299 | AG68: 4.215586559 | AH68: 0.0002830959093 | AI68: 0.6806414704 | AJ68: 417.9166978 | AK68: 958.50146 | AL68: 2.402731636 | AM68: 45873.99321 | AN68: 1.753368495 | AO68: 3227.945439 | AP68: 0.0003097945795 | AQ68: 0.0001955508025 | AR68: 5.313182427e-05 | AS68: 6.111195276e-05 | AU68: 73.4117417 | AV68: -73.4117417
F69: 48 | G69: 55.8857408 | H69: 99.80885613 | I69: 71.59975159 | J69: 2.106690344 | K69: 2.203346586e-05 | L69: 0.02937613806 | M69: 449.8429541 | N69: 201.3069072 | O69: 0.8836816714 | P69: 88180.76842 | Q69: 1.580115456 | R69: 0.05908606417 | S69: 0.6943124872 | T69: 2431.994029 | U69: 55.8857408 | V69: 201.3069072 | W69: 449.8429541 | X69: 2.106690344 | Y69: 99.80885613 | Z69: 141.4252358 | AA69: 519.638541 | AB69: 1.589039993 | AC69: 1954.234266 | AD69: 5256.166964 | AE69: 13969.27266 | AF69: 154.4145252 | AG69: 4.215686989 | AH69: 0.0002828351756 | AI69: 0.6806665846 | AJ69: 418.284156 | AK69: 958.4388397 | AL69: 2.40288862 | AM69: 45916.2825 | AN69: 1.751730725 | AO69: 3284.37393 | AP69: 0.0003044720307 | AQ69: 0.0001902527083 | AR69: 5.313182427e-05 | AS69: 6.108749816e-05 | AU69: 71.59975159 | AV69: -71.59975159
F70: 49 | G70: 57.92495131 | H70: 99.89386816 | I70: 69.54692431 | J70: 2.010978602 | K70: 2.191548069e-05 | L70: 0.02926136785 | M70: 454.0385769 | N70: 196.2860195 | O70: 0.9062857591 | P70: 88655.50242 | Q70: 1.506134741 | R70: 0.05905510658 | S70: 0.7087773307 | T70: 2456.595551 | U70: 57.92495131 | V70: 196.2860195 | W70: 454.0385769 | X70: 2.010978602 | Y70: 99.89386816 | Z70: 141.3582475 | AA70: 519.7521764 | AB70: 1.565768296 | AC70: 2014.147236 | AD70: 5396.145685 | AE70: 13974.72235 | AF70: 154.4692268 | AG70: 4.215785105 | AH70: 0.0002825812885 | AI70: 0.6806909902 | AJ70: 418.6425442 | AK70: 958.3777327 | AL70: 2.40304183 | AM70: 45957.53629 | AN70: 1.750136265 | AO70: 3338.753711 | AP70: 0.000299512958 | AQ70: 0.0001853174578 | AR70: 5.313182427e-05 | AS70: 6.106367601e-05 | AU70: 69.54692431 | AV70: -69.54692431
F71: 50 | G71: 59.99996865 | H71: 99.9764409 | I71: 67.2785563 | J71: 1.928402026 | K71: 2.181675382e-05 | L71: 0.02917074851 | M71: 458.1234419 | N71: 191.6235094 | O71: 0.9283371586 | P71: 89056.69317 | Q71: 1.442248636 | R71: 0.05902909823 | S71: 0.7232421742 | T71: 2480.700706 | U71: 59.99996865 | V71: 191.6235094 | W71: 458.1234419 | X71: 1.928402026 | Y71: 99.9764409 | Z71: 141.2932728 | AA71: 519.8625106 | AB71: 1.544385114 | AC71: 2071.568936 | AD71: 5532.797698 | AE71: 13980.01363 | AF71: 154.5223514 | AG71: 4.215880564 | AH71: 0.0002823350685 | AI71: 0.6807146121 | AJ71: 418.9906571 | AK71: 958.3183472 | AL71: 2.403190743 | AM71: 45997.61515 | AN71: 1.748590241 | AO71: 3390.833093 | AP71: 0.0002949127759 | AQ71: 0.0001807403875 | AR71: 5.313182427e-05 | AS71: 6.10405641e-05
J175: Copy of calculation results for plotting
K176: Tcj | L176: Thj | M176: dqj
J177: Element | K177: Tcold [C] | L177: Thot [C] | M177: dqj [W]
J178: =F22 -> 1 | K178: =G22 -> 4 | L178: =H22 -> 95 | M178: =I22 -> 170.3094693
J179: 2 | K179: 8.388242091 | L179: 95.20246623 | M179: 147.750912
J180: 3 | K180: 12.03169101 | L180: 95.37810568 | M180: 136.0406394
J181: 4 | K181: 15.23600205 | L181: 95.5398174 | M181: 127.8259209
J182: 5 | K182: 18.09788328 | L182: 95.69175811 | M182: 121.2556724
J183: 6 | K183: 20.66131007 | L183: 95.83588355 | M183: 115.6200946
J184: 7 | K184: 22.95104666 | L184: 95.97330551 | M184: 110.5944393
J185: 8 | K185: 24.98439666 | L185: 96.10474958 | M185: 106.0057419
J186: 9 | K186: 26.77532125 | L186: 96.23073567 | M186: 101.7375759
J187: 10 | K187: 28.33507569 | L187: 96.35164524 | M187: 97.69695777
J188: 11 | K188: 29.67237608 | L188: 96.46774917 | M188: 93.82055831
J189: 12 | K189: 30.79539257 | L189: 96.57924304 | M189: 90.09172992
J190: 13 | K190: 31.71543667 | L190: 96.68630262 | M190: 86.53536567
J191: 14 | K191: 32.44962853 | L191: 96.78913319 | M191: 83.19305205
J192: 15 | K192: 33.02077927 | L192: 96.88798946 | M192: 80.11752412
J193: 16 | K193: 33.4559515 | L193: 96.98318872 | M193: 77.37081086
J194: 17 | K194: 33.78413079 | L194: 97.07512196 | M194: 74.96707643
J195: 18 | K195: 34.03159601 | L195: 97.16419692 | M195: 72.87618885
J196: 19 | K196: 34.21942705 | L196: 97.25078551 | M196: 71.2311864
J197: 20 | K197: 34.36803622 | L197: 97.33541766 | M197: 70.1851511
J198: 21 | K198: 34.49629076 | L198: 97.41880516 | M198: 69.62274796
J199: 22 | K199: 34.61645911 | L199: 97.50152266 | M199: 69.33765312
J200: 23 | K200: 34.73493408 | L200: 97.58389966 | M200: 69.11795089
J201: 24 | K201: 34.85331049 | L201: 97.66601388 | M201: 69.17972087
J202: 25 | K202: 34.97808534 | L202: 97.74819971 | M202: 69.50809798
J203: 26 | K203: 35.11626297 | L203: 97.83077387 | M203: 70.0350145
J204: 27 | K204: 35.27462537 | L204: 97.9139722 | M204: 70.69077154
J205: 28 | K205: 35.45968485 | L205: 97.99794769 | M205: 71.42527969
J206: 29 | K206: 35.67794601 | L206: 98.08279385 | M206: 72.20972398
J207: 30 | K207: 35.93629833 | L207: 98.16856992 | M207: 73.02824726
J208: 31 | K208: 36.24233824 | L208: 98.25531633 | M208: 73.86864385
J209: 32 | K209: 36.60448825 | L209: 98.34305899 | M209: 74.7169137
J210: =F54 -> 33 | K210: =G54 -> 37.03191305 | L210: =H54 -> 98.43180717 | M210: =I54 -> 75.55554039
J211: 34 | K211: 37.53429413 | L211: 98.52154934 | M211: 76.36357609
J212: 35 | K212: 38.1215135 | L212: 98.6122491 | M212: 77.11723965
J213: 36 | K213: 38.80327406 | L213: 98.7038418 | M213: 77.79057768
J214: 37 | K214: 39.58867309 | L214: 98.79623196 | M214: 78.3561445
J215: 38 | K215: 40.48574551 | L215: 98.88929153 | M215: 78.7857686
J216: 39 | K216: 41.50099925 | L216: 98.98285901 | M216: 79.0514629
J217: 40 | K217: 42.6389716 | L217: 99.07673967 | M217: 79.12648667
J218: 41 | K218: 43.90184023 | L218: 99.17070704 | M218: 78.98651295
J219: 42 | K219: 45.28912268 | L219: 99.26450582 | M219: 78.61081543
J220: 43 | K220: 46.79749382 | L220: 99.35785607 | M220: 77.96130891
J221: 44 | K221: 48.42028217 | L221: 99.45043269 | M221: 77.24032947
J222: 45 | K222: 50.15266294 | L222: 99.54215087 | M222: 76.24144465
J223: 46 | K223: 51.98361383 | L223: 99.63268068 | M223: 74.96329859
J224: 47 | K224: 53.89974148 | L224: 99.72169061 | M224: 73.4117417
J225: 48 | K225: 55.8857408 | L225: 99.80885613 | M225: 71.59975159
J226: 49 | K226: 57.92495131 | L226: 99.89386816 | M226: 69.54692431
J227: 50 | K227: 59.99996865 | L227: 99.9764409 | M227: 67.2785563
